Workbook

Sheet Home Page
A1: Highway Safety Benefit-Cost Analysis Model (Version 2.0)
B5: Please make sure to save a copy of this tool with a relevant project-alternative name before entering any data.

Sheet Instructions
B1: Reference Guide: TOOL INSTRUCTIONS
F7: TABLE OF CONTENTS
F9: INTRODUCTION
F11: INSTRUCTIONS
F12: Cell Color Codes
F13: Project Information Worksheet
F14: Project Data
F15: Project Costs
F16: Crash Information Worksheet
F17: Analysis Parameters Worksheet
F18: Results Worksheet
F19: Lookup Worksheet
F20: Final Calculations Worksheet
F22: BENEFITS WORKSHEETS
F23: Crash Benefits
F24: Travel Time Benefits
F25: Reliability Benefits
F26: VOC Benefits
F27: Emissions Benefits
F29: EVALUATING SYSTEMIC COUNTERMEASURE PROGRAMS

Sheet 1) Project Information
B1: PROJECT INFORMATION
H2: Legend
C3: Agency: | H3: User-Supplied Data | I3: 0
C4: Project Title: | H4: Model Default | I4: 0
C5: Date: | H5: Model Calculation | I5: 0
C6: Analyst:
C7: Build Alternative Name
B9: PROJECT DATA
B10: Enter basic project data here. The green cells require user-supplied data when a default blue cell is not adjacent. The blue cells are model defaults, but can be overridden by entering a value in the green cell next to the blue default. All orange text represents model calculations.
C12: Select roadway facility type from list | D12: Urban Interstate/Expressway
C14: Analysis Period (Years) | D14: 20
C15: Length of Construction Period (Years) | D15: 3 | H15: =
C16: Total Period | D16: =D14+D15 -> 23 | F16: (analysis period years plus construction period years)
C17: Annual Discount Rate (Percent) | D17: 0.03
C18: Percent of Trucks in the Flow (Percent) | D18: =VLOOKUP(inputFacilityType,Lookup!$C$9:$G$13,5,FALSE) -> 0.08
C19: Fuel Cost (Dollars/Gallon) | D19: 2.5
C20: Value of Time ($/Hr.) Personal | D20: =VLOOKUP(inputFacilityType,Lookup!$C$9:$F$13,3,FALSE) -> 26.006136
C21: Value of Time ($/Hr.) Freight | D21: =VLOOKUP(inputFacilityType,Lookup!$C$9:$F$13,4,FALSE) -> 38.612769
C22: Calculated Combined Value of Time ($/Hr.) | D22: =(IF('1) Project Information'!$E$18>0,'1) Project Information'!$E$18,'1) Project Information'!$D$18))*(IF('1) Project Information'!$E$21>0,'1) Project Information'!$E$21,'1) Project Information'!$D$21))+(IF('1) Project Information'!$E$20>0,'1) Project Information'!$E$20,'1) Project Information'!$D$20))*(1-(IF('1) Project Information'!$E$18>0,'1) Project Information'!$E$18,'1) Project Information'!$D$18))) -> 27.01466664
C23: The following information is used only for Reliability Benefit calculations. Reliability benefits are not estimated for facilities that are classified as Urban or Rural Other. User may ignore the information input items below for these facilities and move to the Project Costs section. See the BCA Guide or the Reference Guide for additional explanation.
C25: Segment Length (Miles) | D25: 5
C26: Number of Lanes | D26: 2 | F26: (2 for two-lane roads; otherwise, number of lanes per direction)
C27: Free Flow Speed (MPH) | D27: =VLOOKUP('Reliability Benefits'!$B$6,LinkCharacteristics!$D$4:$G$8,3,FALSE) -> 70
C28: Traffic Volume (during peak period)
C29: Link Capacity | D29: ='Reliability Benefits'!$B$12 -> 8800 | F29: (passenger car equivalents for all lanes, or estimated by the Highway Capacity Manual methods)
C30: Hours of Peak Traffic per Day | D30: 2 | F30: (e.g., number of hours in am and/or pm peak)
C31: Days of Analysis per Year | D31: 260 | F31: (e.g., 365 for analysis of all days or 260 for analysis of weekday travel time reliability)
C32: Reliability Ratio Personal | D32: 1
C33: Reliability Ratio Freight | D33: 1.2
B36: PROJECT COSTS
B37: Enter project life-cycle costs in table here. The green cells indicate data that is supplied by the user. The blue cells are model defaults. All orange text represents model calculations.
C38: DIRECT PROJECT COSTS
C39: INITIAL COSTS | F39: SUBSEQUENT COSTS
B40: Year | C40: Project Support | D40: Right-of-Way | E40: Construction | F40: Maintenance/Operation | G40: Rehabilitation | H40: Mitigation | I40: Present Value
B42: Construction Period
B43: 1 | F43: =IF(SUM(C43:E43,H43:H43)=0,"<-- Must enter a cost -->","") -> <-- Must enter a cost --> | I43: =SUM(C43:H43) -> 0
B44: 2 | I44: =(1/(1+(IF($E$17>0,$E$17,$D$17)))^B44)*SUM(C44:H44) -> 0
B45: 3 | I45: 0
B46: 4 | I46: 0
B47: 5 | I47: 0
B48: 6 | I48: 0
B49: 7 | I49: 0
B50: 8 | I50: 0
B51: Open to Public
B52: 1 | I52: =IF(B52<=D$14,(1/(1+(IF($E$17>0,$E$17,$D$17)))^(B52+$D$15))*SUM(C52:H52),0) -> 0
B53: 2 | I53: 0
B54: 3 | I54: 0
B55: 4 | I55: 0
B56: 5 | I56: 0
B57: 6 | I57: 0
B58: 7 | I58: 0
B59: 8 | I59: 0
B60: 9 | I60: 0
B61: 10 | I61: 0
B62: 11 | I62: 0
B63: 12 | I63: 0
B64: 13 | I64: 0
B65: 14 | I65: 0
B66: 15 | I66: 0
B67: 16 | I67: 0
B68: 17 | I68: 0
B69: 18 | I69: 0
B70: 19 | I70: 0
B71: 20 | I71: 0
B72: 21 | I72: 0
B73: 22 | I73: 0
B74: 23 | I74: 0
B75: 24 | I75: 0
B76: 25 | I76: 0
B77: 26 | I77: 0
B78: 27 | I78: 0
B79: 28 | I79: 0
B80: 29 | I80: 0
B81: 30 | I81: 0
B82: 31 | I82: 0
B83: 32 | I83: 0
B84: 33 | I84: =IF(B84<=D$14,(1/(1+(IF($E$17>0,$E$17,$D$17)))^(B84+$D$15))*SUM(C84:H84),0) -> 0
B85: 34 | I85: 0
B86: 35 | I86: 0
B87: 36 | I87: 0
B88: 37 | I88: 0
B89: 38 | I89: 0
B90: 39 | I90: 0
B91: 40 | I91: 0
B92: 41 | I92: 0
B93: 42 | I93: 0
B94: 43 | I94: 0
B95: 44 | I95: 0
B96: 45 | I96: 0
B97: 46 | I97: 0
B98: 47 | I98: 0
B99: 48 | I99: 0
B100: 49 | I100: 0
B101: 50 | I101: 0
B102: Total | C102: =SUM(C43:C101) -> 0 | D102: =SUM(D43:D101) -> 0 | E102: 0 | F102: 0 | G102: 0 | H102: 0 | I102: 0

Sheet 2) Project Crash Data
B1: PROJECT CRASH DATA
B2: This sheet calculates annual reductions in crash frequency and severity for single or multiple countermeasures.
J3: Color Codes
B4: 1) Single or Multiple Countermeasure | J4: User-Supplied Data | K4: 0
J5: Model Parameter | K5: 0
B6: 2) Calculation Method | J6: Model Calculation | K6: ='2) Project Crash Data'!H33 -> 0
J7: Linked Cell | K7: ='2) Project Crash Data'!F39 -> 0
B9: BASELINE CRASH DATA AND CRASH MODIFICATION FACTORS
B10: Enter estimated annual crashes without treatment and Crash Modification Factors (CMF).
B11: Injury Severity Scale | C11: Estimated Annual Crashes without Treatment | D11: CMF1 | E11: CMF2
B12: K
B13: A
B14: B
B15: C
B16: O
B17: CMF Clearinghouse ID
B24: CALCULATION FOR THE ANNUAL REDUCTION IN CRASH FREQUENCY AND SEVERITY
B25: This section automatically calculates annual reduction in crash frequency and severity. No user input is required for this table. However, if the user wishes to override or enter externally calculated Crash Reductions, they may be entered in the Green cells, Column (5).
B27: Formula 1: Estimated Annual Reductions with Treatment (3) | F27: = (1) Estimated Crashes without Treatment x (2) Crash Modfication Factor
B28: Formula 2: Annual Reduction in Crashes (4) | F28: = (3) Estimated Annual Reduction with Treatment - (1) Estimated Crashes without Treatment
C30: (1) | D30: (2) | E30: (3) | F30: (4) | G30: (5)
B31: Injury Severity Scale | C31: Estimated Annual Crashes without Treatment | D31: Crash Modification Factor | E31: Estimated Annual Crashes with Treatment | F31: Annual Reduction in Crashes | G31: User Determined Reduction in Crashes
B32: K | C32: =C12 -> 0 | D32: =IF(D$43="Additive Method",D46,IF(D$43="Dominant Effect",C46,IF(D$43="Multiplicative Method",E46,IF(D$43="Dominant Common Residuals Method",F46,D12)))) -> 0 | E32: =C32*D32 -> 0 | F32: =C32-E32 -> 0
B33: A | C33: =C13 -> 0 | D33: =IF(D$43="Additive Method",D47,IF(D$43="Dominant Effect",C47,IF(D$43="Multiplicative Method",E47,IF(D$43="Dominant Common Residuals Method",F47,D13)))) -> 0 | E33: =C33*D33 -> 0 | F33: =C33-E33 -> 0
B34: B | C34: =C14 -> 0 | D34: =IF(D$43="Additive Method",D48,IF(D$43="Dominant Effect",C48,IF(D$43="Multiplicative Method",E48,IF(D$43="Dominant Common Residuals Method",F48,D14)))) -> 0 | E34: =C34*D34 -> 0 | F34: =C34-E34 -> 0
B35: C | C35: =C15 -> 0 | D35: =IF(D$43="Additive Method",D49,IF(D$43="Dominant Effect",C49,IF(D$43="Multiplicative Method",E49,IF(D$43="Dominant Common Residuals Method",F49,D15)))) -> 0 | E35: =C35*D35 -> 0 | F35: =C35-E35 -> 0
B36: O | C36: =C16 -> 0 | D36: =IF(D$43="Additive Method",D50,IF(D$43="Dominant Effect",C50,IF(D$43="Multiplicative Method",E50,IF(D$43="Dominant Common Residuals Method",F50,D16)))) -> 0 | E36: =C36*D36 -> 0 | F36: =C36-E36 -> 0
B37: Total | C37: =SUM(C32:C36) -> 0 | E37: =SUM(E32:E36) -> 0 | F37: =SUM(F32:F36) -> 0 | G37: =+G32+G33+G34+G35+G36 -> 0
B40: CMF CALCULATIONS FOR MULTIPLE COUNTERMEASURES (NOT APPLICABLE TO SINGLE COUNTERMEASURES)
B41: This section automatically calculates a CMF value for the project when multiple countermeasures are being evaluated. Not applicable to single countermeasures. No user input is required for this table.
B42: Analysis Type | D42: Single Countermeasure
B43: Calculation Method | D43: =IF(D$42="Single Countermeasure","Not applicable",F43) -> Not applicable | F43: Not Applicable
B45: Severity Scale | C45: Dominant Effect | D45: Additive Method | E45: Multiplicative Method | F45: Dominant Common Residuals Method
B46: K | C46: =IF(D12<E12,D12,E12) -> 0 | D46: =1-((1-D12)+(1-E12)) -> -1 | E46: =D12*E12 -> 0 | F46: =IFERROR((D12*E12)^C46,0) -> 0
B47: A | C47: =IF(D13<E13,D13,E13) -> 0 | D47: =1-((1-D13)+(1-E13)) -> -1 | E47: =D13*E13 -> 0 | F47: =IFERROR((D13*E13)^C47,0) -> 0
B48: B | C48: =IF(D14<E14,D14,E14) -> 0 | D48: =1-((1-D14)+(1-E14)) -> -1 | E48: =D14*E14 -> 0 | F48: 0
B49: C | C49: =IF(D15<E15,D15,E15) -> 0 | D49: =1-((1-D15)+(1-E15)) -> -1 | E49: =D15*E15 -> 0 | F49: 0
B50: O | C50: =IF(D16<E16,D16,E16) -> 0 | D50: =1-((1-D16)+(1-E16)) -> -1 | E50: =D16*E16 -> 0 | F50: 0

Sheet 3) Analysis Parameters
B1: ANALYSIS PARAMETERS
B2: This page lists model-defined parameters from the Lookup worksheet.
B3: Model-defined parameters are based on the "Roadway Facility Type" selected by the user on the Project Information worksheet.
C5: Roadway Facility Type | D5: ='1) Project Information'!D12 -> Urban Interstate/Expressway | H5: Color Codes
H6: User-Supplied Data
D7: Parameter | E7: User Defined | H7: Model Parameter
C8: Value of Time | D8: =IF('1) Project Information'!$E$22>0,'1) Project Information'!$E$22,'1) Project Information'!$D$22) -> 27.01466664
H9: Users may modify default values by entering user defined values in the green cells on the right of the Lookup entry.
C10: Travel Time Delay Factors | D10: (Hours/Crash)
C11: Fatal | D11: =IF(E11>0,E11,IF('1) Project Information'!D12="Urban Interstate/Expressway",Lookup!S11,IF('1) Project Information'!D12="Urban Arterial",Lookup!T11,IF('1) Project Information'!D12="Urban Other",Lookup!U11,IF('1) Project Information'!D12="Rural Interstate/Principal Arterial",Lookup!V11,IF('1) Project Information'!D12="Rural Other",Lookup!W11,Lookup!S15)))))) -> 5147.7 | E11: 0
C12: Injury | D12: =IF(E12>0,E12,IF('1) Project Information'!D12="Urban Interstate/Expressway",Lookup!S17,IF('1) Project Information'!D12="Urban Arterial",Lookup!T17,IF('1) Project Information'!D12="Urban Other",Lookup!U17,IF('1) Project Information'!D12="Rural Interstate/Principal Arterial",Lookup!V17,IF('1) Project Information'!D12="Rural Other",Lookup!W17,Lookup!S21)))))) -> 345.29 | E12: 0
C13: PDO | D13: =IF(E13>0,E13,IF('1) Project Information'!D12="Urban Interstate/Expressway",Lookup!S23,IF('1) Project Information'!D12="Urban Arterial",Lookup!T23,IF('1) Project Information'!D12="Urban Other",Lookup!U23,IF('1) Project Information'!D12="Rural Interstate/Principal Arterial",Lookup!V23,IF('1) Project Information'!D12="Rural Other",Lookup!W23,Lookup!T27)))))) -> 215 | E13: 0
C15: Vehicle Operation Cost Factors | D15: (Gallons/Crash)
C16: Fatal | D16: =IF(E16>0,E16,IF('1) Project Information'!D12="Urban Interstate/Expressway",Lookup!AC9,IF('1) Project Information'!D12="Urban Arterial",Lookup!AC10,IF('1) Project Information'!D12="Urban Other",Lookup!AC11,IF('1) Project Information'!D12="Rural Interstate/Principal Arterial",Lookup!AC12,IF('1) Project Information'!D12="Rural Other",Lookup!AC13,Lookup!AC14)))))) -> 1951 | E16: 0
C17: Injury | D17: =IF(E17>0,E17,IF('1) Project Information'!D12="Urban Interstate/Expressway",Lookup!AC18,IF('1) Project Information'!D12="Urban Arterial",Lookup!AC19,IF('1) Project Information'!D12="Urban Other",Lookup!AC20,IF('1) Project Information'!D12="Rural Interstate/Principal Arterial",Lookup!AC21,IF('1) Project Information'!D12="Rural Other",Lookup!AC22,Lookup!AC23)))))) -> 412 | E17: 0
C18: PDO | D18: =IF(E18>0,E18,IF('1) Project Information'!D12="Urban Interstate/Expressway",Lookup!AC27,IF('1) Project Information'!D12="Urban Arterial",Lookup!AC28,IF('1) Project Information'!D12="Urban Other",Lookup!AC29,IF('1) Project Information'!D12="Rural Interstate/Principal Arterial",Lookup!AC30,IF('1) Project Information'!D12="Rural Other",Lookup!AC31,Lookup!AC32)))))) -> 351 | E18: 0
C21: Emissions Factors (Dollars/Crash) | D21: CO2 | E21: CO | F21: NOx | G21: PM10 | H21: PM2.5 | I21: SO2 | J21: VOC
C22: Fatal | D22: =IF('1) Project Information'!D12="Urban Interstate/Expressway",Lookup!AH9,IF('1) Project Information'!D12="Urban Arterial",Lookup!AH10,IF('1) Project Information'!D12="Urban Other",Lookup!AH11,IF('1) Project Information'!D12="Rural Interstate/Principal Arterial",Lookup!AH12,IF('1) Project Information'!D12="Rural Other",Lookup!AH13,Lookup!AH14))))) -> 827.900944 | E22: =IF('1) Project Information'!D12="Urban Interstate/Expressway",Lookup!AI9,IF('1) Project Information'!D12="Urban Arterial",Lookup!AI11,IF('1) Project Information'!D12="Urban Other",Lookup!AI11,IF('1) Project Information'!D12="Rural Interstate/Principal Arterial",Lookup!AI12,IF('1) Project Information'!D12="Rural Other",Lookup!AI13,Lookup!AI14))))) -> 0 | F22: =IF('1) Project Information'!D$12="Urban Interstate/Expressway",Lookup!AJ9,IF('1) Project Information'!D$12="Urban Arterial",Lookup!AJ10,IF('1) Project Information'!D$12="Urban Other",Lookup!AJ11,IF('1) Project Information'!D$12="Rural Interstate/Principal Arterial",Lookup!AJ12,IF('1) Project Information'!D$12="Rural Other",Lookup!AJ13,Lookup!AJ14))))) -> 197.588768 | G22: =IF('1) Project Information'!D12="Urban Interstate/Expressway",Lookup!AK9,IF('1) Project Information'!D12="Urban Arterial",Lookup!AK10,IF('1) Project Information'!D12="Urban Other",Lookup!AK11,IF('1) Project Information'!D12="Rural Interstate/Principal Arterial",Lookup!AK12,IF('1) Project Information'!D12="Rural Other",Lookup!AK13,Lookup!AK14))))) -> 0 | H22: =IF('1) Project Information'!D12="Urban Interstate/Expressway",Lookup!AL9,IF('1) Project Information'!D12="Urban Arterial",Lookup!AL10,IF('1) Project Information'!D12="Urban Other",Lookup!AL11,IF('1) Project Information'!D12="Rural Interstate/Principal Arterial",Lookup!AL12,IF('1) Project Information'!D12="Rural Other",Lookup!AL13,Lookup!AL14))))) -> 895.5258 | I22: =IF('1) Project Information'!D12="Urban Interstate/Expressway",Lookup!AM9,IF('1) Project Information'!D12="Urban Arterial",Lookup!AM10,IF('1) Project Information'!D12="Urban Other",Lookup!AM11,IF('1) Project Information'!D12="Rural Interstate/Principal Arterial",Lookup!AM12,IF('1) Project Information'!D12="Rural Other",Lookup!AM13,Lookup!AM14))))) -> 70.785208 | J22: =IF('1) Project Information'!D12="Urban Interstate/Expressway",Lookup!AN9,IF('1) Project Information'!D12="Urban Arterial",Lookup!AN10,IF('1) Project Information'!D12="Urban Other",Lookup!AN11,IF('1) Project Information'!D12="Rural Interstate/Principal Arterial",Lookup!AN12,IF('1) Project Information'!D12="Rural Other",Lookup!AN13,Lookup!AN14))))) -> 23.613616
C23: Injury | D23: =IF('1) Project Information'!D12="Urban Interstate/Expressway",Lookup!AH18,IF('1) Project Information'!D12="Urban Arterial",Lookup!AH19,IF('1) Project Information'!D12="Urban Other",Lookup!AH20,IF('1) Project Information'!D12="Rural Interstate/Principal Arterial",Lookup!AH21,IF('1) Project Information'!D12="Rural Other",Lookup!AH22,Lookup!AH23))))) -> 174.909904 | E23: =IF('1) Project Information'!D12="Urban Interstate/Expressway",Lookup!AI18,IF('1) Project Information'!D12="Urban Arterial",Lookup!AI19,IF('1) Project Information'!D12="Urban Other",Lookup!AI20,IF('1) Project Information'!D12="Rural Interstate/Principal Arterial",Lookup!AI21,IF('1) Project Information'!D12="Rural Other",Lookup!AI22,Lookup!AI23))))) -> 0 | F23: =IF('1) Project Information'!D12="Urban Interstate/Expressway",Lookup!AJ18,IF('1) Project Information'!D12="Urban Arterial",Lookup!AJ19,IF('1) Project Information'!D12="Urban Other",Lookup!AJ20,IF('1) Project Information'!D12="Rural Interstate/Principal Arterial",Lookup!AJ21,IF('1) Project Information'!D12="Rural Other",Lookup!AJ22,Lookup!AJ23))))) -> 41.741128 | G23: =IF('1) Project Information'!D12="Urban Interstate/Expressway",Lookup!AK18,IF('1) Project Information'!D12="Urban Arterial",Lookup!AK19,IF('1) Project Information'!D12="Urban Other",Lookup!AK20,IF('1) Project Information'!D12="Rural Interstate/Principal Arterial",Lookup!AK21,IF('1) Project Information'!D12="Rural Other",Lookup!AK22,Lookup!AK23))))) -> 0 | H23: =IF('1) Project Information'!D12="Urban Interstate/Expressway",Lookup!AL18,IF('1) Project Information'!D12="Urban Arterial",Lookup!AL19,IF('1) Project Information'!D12="Urban Other",Lookup!AL20,IF('1) Project Information'!D12="Rural Interstate/Principal Arterial",Lookup!AL21,IF('1) Project Information'!D12="Rural Other",Lookup!AL22,Lookup!AL23))))) -> 189.153744 | I23: =IF('1) Project Information'!D12="Urban Interstate/Expressway",Lookup!AM18,IF('1) Project Information'!D12="Urban Arterial",Lookup!AM19,IF('1) Project Information'!D12="Urban Other",Lookup!AM20,IF('1) Project Information'!D12="Rural Interstate/Principal Arterial",Lookup!AM21,IF('1) Project Information'!D12="Rural Other",Lookup!AM22,Lookup!AM23))))) -> 14.978288 | J23: =IF('1) Project Information'!D12="Urban Interstate/Expressway",Lookup!AN18,IF('1) Project Information'!D12="Urban Arterial",Lookup!AN19,IF('1) Project Information'!D12="Urban Other",Lookup!AN20,IF('1) Project Information'!D12="Rural Interstate/Principal Arterial",Lookup!AN21,IF('1) Project Information'!D12="Rural Other",Lookup!AN22,Lookup!AN23))))) -> 4.985344
C24: PDO | D24: =IF('1) Project Information'!D12="Urban Interstate/Expressway",Lookup!AH27,IF('1) Project Information'!D12="Urban Arterial",Lookup!AH28,IF('1) Project Information'!D12="Urban Other",Lookup!AH29,IF('1) Project Information'!D12="Rural Interstate/Principal Arterial",Lookup!AH30,IF('1) Project Information'!D12="Rural Other",Lookup!AH31,Lookup!AH32))))) -> 148.759104 | E24: =IF('1) Project Information'!D12="Urban Interstate/Expressway",Lookup!AI27,IF('1) Project Information'!D12="Urban Arterial",Lookup!AI28,IF('1) Project Information'!D12="Urban Other",Lookup!AI29,IF('1) Project Information'!D12="Rural Interstate/Principal Arterial",Lookup!AI30,IF('1) Project Information'!D12="Rural Other",Lookup!AI31,Lookup!AI32))))) -> 0 | F24: =IF('1) Project Information'!D12="Urban Interstate/Expressway",Lookup!AJ27,IF('1) Project Information'!D12="Urban Arterial",Lookup!AJ28,IF('1) Project Information'!D12="Urban Other",Lookup!AJ29,IF('1) Project Information'!D12="Rural Interstate/Principal Arterial",Lookup!AJ30,IF('1) Project Information'!D12="Rural Other",Lookup!AJ31,Lookup!AJ32))))) -> 35.509448 | G24: =IF('1) Project Information'!D12="Urban Interstate/Expressway",Lookup!AK27,IF('1) Project Information'!D12="Urban Arterial",Lookup!AK28,IF('1) Project Information'!D12="Urban Other",Lookup!AK29,IF('1) Project Information'!D12="Rural Interstate/Principal Arterial",Lookup!AK30,IF('1) Project Information'!D12="Rural Other",Lookup!AK31,Lookup!AK32))))) -> 0 | H24: =IF('1) Project Information'!D12="Urban Interstate/Expressway",Lookup!AL27,IF('1) Project Information'!D12="Urban Arterial",Lookup!AL28,IF('1) Project Information'!D12="Urban Other",Lookup!AL29,IF('1) Project Information'!D12="Rural Interstate/Principal Arterial",Lookup!AL30,IF('1) Project Information'!D12="Rural Other",Lookup!AL31,Lookup!AL32))))) -> 160.610424 | I24: =IF('1) Project Information'!D12="Urban Interstate/Expressway",Lookup!AM27,IF('1) Project Information'!D12="Urban Arterial",Lookup!AM28,IF('1) Project Information'!D12="Urban Other",Lookup!AM29,IF('1) Project Information'!D12="Rural Interstate/Principal Arterial",Lookup!AM30,IF('1) Project Information'!D12="Rural Other",Lookup!AM31,Lookup!AM32))))) -> 12.674792 | J24: =IF('1) Project Information'!D12="Urban Interstate/Expressway",Lookup!AN27,IF('1) Project Information'!D12="Urban Arterial",Lookup!AN28,IF('1) Project Information'!D12="Urban Other",Lookup!AN29,IF('1) Project Information'!D12="Rural Interstate/Principal Arterial",Lookup!AN30,IF('1) Project Information'!D12="Rural Other",Lookup!AN31,Lookup!AN32))))) -> 4.239768

Sheet 4) Results
A1: ='1) Project Information'!D4 -> 0
A2: Benefit-Cost Analysis Summary Results
B4: AGENCY: | D4: ='1) Project Information'!D3 -> 0 | J4: DATE | K4: ='1) Project Information'!D5 -> 00:00:00
L7: Present
B8: Present Value Costs ($ Dollars) | E8: ='Final Calculations'!I72 -> 0 | I8: ITEMIZED BENEFITS ($ Dollars) | L8: Value
B9: Present Value Benefits ($ Dollars) | E9: ='Final Calculations'!H72 ->  | I9: Safety | L9: ='Final Calculations'!E72 -> 0
B10: Net Present Value ($ Dollars) | E10: ='Final Calculations'!J72 ->  | I10: Travel Time | L10: ='Final Calculations'!C72 -> 0
B11: Benefit / Cost Ratio: | E11: =E9/E8 ->  | I11: Reliability | L11: ='Final Calculations'!G72 -> 
B12: Discount Rate | E12: =IF('1) Project Information'!$E$17>0, '1) Project Information'!E17,'1) Project Information'!D17) -> 0.03 | I12: Vehicle Operating Cost | L12: ='Final Calculations'!D72 -> 0
I13: Emissions | L13: ='Final Calculations'!F72 -> 0
I14: TOTAL BENEFITS | L14: =SUM(L9:L13) -> 

Sheet Crash Benefits
B1: ANNUAL CRASH BENEFIT
B2: This sheet calculates the annual monetary benefit based on the Crash Costs for Highway Safety Analysis developed by the FHWA Office of Safety. | L2: Color Codes
B3: Formula: Annual Crash Reduction Benefit (3) | D3: = (1) Annual Reduction in Crashes x (2) Comprehensive Crash Unit Cost | L3: Model Parameter | M3: 0
L4: Model Calculation | M4: ='2) Project Crash Data'!L32 -> 0
B5: CALCULATION FOR THE MONETIZATION OF ANNUAL CRASH BENEFITS | L5: Linked Cell | M5: ='2) Project Crash Data'!J38 -> 0
C7: Year | D7: Present Value
C8: 1 | D8: =IF(C8<='1) Project Information'!D$14,(1/(1+(IF('1) Project Information'!$E$17>0,'1) Project Information'!$E$17,'1) Project Information'!$D$17)))^C8)*'Crash Benefits'!$E$67,0) -> 0
C9: 2 | D9: =IF(C9<='1) Project Information'!D$14,(1/(1+(IF('1) Project Information'!$E$17>0,'1) Project Information'!$E$17,'1) Project Information'!$D$17)))^C9)*'Crash Benefits'!$E$67,0) -> 0
C10: 3 | D10: =IF(C10<='1) Project Information'!D$14,(1/(1+(IF('1) Project Information'!$E$17>0,'1) Project Information'!$E$17,'1) Project Information'!$D$17)))^C10)*'Crash Benefits'!$E$67,0) -> 0
C11: 4 | D11: =IF(C11<='1) Project Information'!D$14,(1/(1+(IF('1) Project Information'!$E$17>0,'1) Project Information'!$E$17,'1) Project Information'!$D$17)))^C11)*'Crash Benefits'!$E$67,0) -> 0
C12: 5 | D12: =IF(C12<='1) Project Information'!D$14,(1/(1+(IF('1) Project Information'!$E$17>0,'1) Project Information'!$E$17,'1) Project Information'!$D$17)))^C12)*'Crash Benefits'!$E$67,0) -> 0
C13: 6 | D13: =IF(C13<='1) Project Information'!D$14,(1/(1+(IF('1) Project Information'!$E$17>0,'1) Project Information'!$E$17,'1) Project Information'!$D$17)))^C13)*'Crash Benefits'!$E$67,0) -> 0
C14: 7 | D14: =IF(C14<='1) Project Information'!D$14,(1/(1+(IF('1) Project Information'!$E$17>0,'1) Project Information'!$E$17,'1) Project Information'!$D$17)))^C14)*'Crash Benefits'!$E$67,0) -> 0
C15: 8 | D15: =IF(C15<='1) Project Information'!D$14,(1/(1+(IF('1) Project Information'!$E$17>0,'1) Project Information'!$E$17,'1) Project Information'!$D$17)))^C15)*'Crash Benefits'!$E$67,0) -> 0
C16: 9 | D16: =IF(C16<='1) Project Information'!D$14,(1/(1+(IF('1) Project Information'!$E$17>0,'1) Project Information'!$E$17,'1) Project Information'!$D$17)))^C16)*'Crash Benefits'!$E$67,0) -> 0
C17: 10 | D17: =IF(C17<='1) Project Information'!D$14,(1/(1+(IF('1) Project Information'!$E$17>0,'1) Project Information'!$E$17,'1) Project Information'!$D$17)))^C17)*'Crash Benefits'!$E$67,0) -> 0
C18: 11 | D18: =IF(C18<='1) Project Information'!D$14,(1/(1+(IF('1) Project Information'!$E$17>0,'1) Project Information'!$E$17,'1) Project Information'!$D$17)))^C18)*'Crash Benefits'!$E$67,0) -> 0
C19: 12 | D19: =IF(C19<='1) Project Information'!D$14,(1/(1+(IF('1) Project Information'!$E$17>0,'1) Project Information'!$E$17,'1) Project Information'!$D$17)))^C19)*'Crash Benefits'!$E$67,0) -> 0
C20: 13 | D20: =IF(C20<='1) Project Information'!D$14,(1/(1+(IF('1) Project Information'!$E$17>0,'1) Project Information'!$E$17,'1) Project Information'!$D$17)))^C20)*'Crash Benefits'!$E$67,0) -> 0
C21: 14 | D21: =IF(C21<='1) Project Information'!D$14,(1/(1+(IF('1) Project Information'!$E$17>0,'1) Project Information'!$E$17,'1) Project Information'!$D$17)))^C21)*'Crash Benefits'!$E$67,0) -> 0
C22: 15 | D22: =IF(C22<='1) Project Information'!D$14,(1/(1+(IF('1) Project Information'!$E$17>0,'1) Project Information'!$E$17,'1) Project Information'!$D$17)))^C22)*'Crash Benefits'!$E$67,0) -> 0
C23: 16 | D23: =IF(C23<='1) Project Information'!D$14,(1/(1+(IF('1) Project Information'!$E$17>0,'1) Project Information'!$E$17,'1) Project Information'!$D$17)))^C23)*'Crash Benefits'!$E$67,0) -> 0
C24: 17 | D24: =IF(C24<='1) Project Information'!D$14,(1/(1+(IF('1) Project Information'!$E$17>0,'1) Project Information'!$E$17,'1) Project Information'!$D$17)))^C24)*'Crash Benefits'!$E$67,0) -> 0
C25: 18 | D25: =IF(C25<='1) Project Information'!D$14,(1/(1+(IF('1) Project Information'!$E$17>0,'1) Project Information'!$E$17,'1) Project Information'!$D$17)))^C25)*'Crash Benefits'!$E$67,0) -> 0
C26: 19 | D26: =IF(C26<='1) Project Information'!D$14,(1/(1+(IF('1) Project Information'!$E$17>0,'1) Project Information'!$E$17,'1) Project Information'!$D$17)))^C26)*'Crash Benefits'!$E$67,0) -> 0
C27: 20 | D27: =IF(C27<='1) Project Information'!D$14,(1/(1+(IF('1) Project Information'!$E$17>0,'1) Project Information'!$E$17,'1) Project Information'!$D$17)))^C27)*'Crash Benefits'!$E$67,0) -> 0
C28: 21 | D28: =IF(C28<='1) Project Information'!D$14,(1/(1+(IF('1) Project Information'!$E$17>0,'1) Project Information'!$E$17,'1) Project Information'!$D$17)))^C28)*'Crash Benefits'!$E$67,0) -> 0
C29: 22 | D29: =IF(C29<='1) Project Information'!D$14,(1/(1+(IF('1) Project Information'!$E$17>0,'1) Project Information'!$E$17,'1) Project Information'!$D$17)))^C29)*'Crash Benefits'!$E$67,0) -> 0
C30: 23 | D30: =IF(C30<='1) Project Information'!D$14,(1/(1+(IF('1) Project Information'!$E$17>0,'1) Project Information'!$E$17,'1) Project Information'!$D$17)))^C30)*'Crash Benefits'!$E$67,0) -> 0
C31: 24 | D31: =IF(C31<='1) Project Information'!D$14,(1/(1+(IF('1) Project Information'!$E$17>0,'1) Project Information'!$E$17,'1) Project Information'!$D$17)))^C31)*'Crash Benefits'!$E$67,0) -> 0
C32: 25 | D32: =IF(C32<='1) Project Information'!D$14,(1/(1+(IF('1) Project Information'!$E$17>0,'1) Project Information'!$E$17,'1) Project Information'!$D$17)))^C32)*'Crash Benefits'!$E$67,0) -> 0
C33: 26 | D33: =IF(C33<='1) Project Information'!D$14,(1/(1+(IF('1) Project Information'!$E$17>0,'1) Project Information'!$E$17,'1) Project Information'!$D$17)))^C33)*'Crash Benefits'!$E$67,0) -> 0
C34: 27 | D34: =IF(C34<='1) Project Information'!D$14,(1/(1+(IF('1) Project Information'!$E$17>0,'1) Project Information'!$E$17,'1) Project Information'!$D$17)))^C34)*'Crash Benefits'!$E$67,0) -> 0
C35: 28 | D35: =IF(C35<='1) Project Information'!D$14,(1/(1+(IF('1) Project Information'!$E$17>0,'1) Project Information'!$E$17,'1) Project Information'!$D$17)))^C35)*'Crash Benefits'!$E$67,0) -> 0
C36: 29 | D36: =IF(C36<='1) Project Information'!D$14,(1/(1+(IF('1) Project Information'!$E$17>0,'1) Project Information'!$E$17,'1) Project Information'!$D$17)))^C36)*'Crash Benefits'!$E$67,0) -> 0
C37: 30 | D37: =IF(C37<='1) Project Information'!D$14,(1/(1+(IF('1) Project Information'!$E$17>0,'1) Project Information'!$E$17,'1) Project Information'!$D$17)))^C37)*'Crash Benefits'!$E$67,0) -> 0
C38: 31 | D38: =IF(C38<='1) Project Information'!D$14,(1/(1+(IF('1) Project Information'!$E$17>0,'1) Project Information'!$E$17,'1) Project Information'!$D$17)))^C38)*'Crash Benefits'!$E$67,0) -> 0
C39: 32 | D39: =IF(C39<='1) Project Information'!D$14,(1/(1+(IF('1) Project Information'!$E$17>0,'1) Project Information'!$E$17,'1) Project Information'!$D$17)))^C39)*'Crash Benefits'!$E$67,0) -> 0
C40: 33 | D40: =IF(C40<='1) Project Information'!D$14,(1/(1+(IF('1) Project Information'!$E$17>0,'1) Project Information'!$E$17,'1) Project Information'!$D$17)))^C40)*'Crash Benefits'!$E$67,0) -> 0
C41: 34 | D41: =IF(C41<='1) Project Information'!D$14,(1/(1+(IF('1) Project Information'!$E$17>0,'1) Project Information'!$E$17,'1) Project Information'!$D$17)))^C41)*'Crash Benefits'!$E$67,0) -> 0
C42: 35 | D42: =IF(C42<='1) Project Information'!D$14,(1/(1+(IF('1) Project Information'!$E$17>0,'1) Project Information'!$E$17,'1) Project Information'!$D$17)))^C42)*'Crash Benefits'!$E$67,0) -> 0
C43: 36 | D43: =IF(C43<='1) Project Information'!D$14,(1/(1+(IF('1) Project Information'!$E$17>0,'1) Project Information'!$E$17,'1) Project Information'!$D$17)))^C43)*'Crash Benefits'!$E$67,0) -> 0
C44: 37 | D44: =IF(C44<='1) Project Information'!D$14,(1/(1+(IF('1) Project Information'!$E$17>0,'1) Project Information'!$E$17,'1) Project Information'!$D$17)))^C44)*'Crash Benefits'!$E$67,0) -> 0
C45: 38 | D45: =IF(C45<='1) Project Information'!D$14,(1/(1+(IF('1) Project Information'!$E$17>0,'1) Project Information'!$E$17,'1) Project Information'!$D$17)))^C45)*'Crash Benefits'!$E$67,0) -> 0
C46: 39 | D46: =IF(C46<='1) Project Information'!D$14,(1/(1+(IF('1) Project Information'!$E$17>0,'1) Project Information'!$E$17,'1) Project Information'!$D$17)))^C46)*'Crash Benefits'!$E$67,0) -> 0
C47: 40 | D47: =IF(C47<='1) Project Information'!D$14,(1/(1+(IF('1) Project Information'!$E$17>0,'1) Project Information'!$E$17,'1) Project Information'!$D$17)))^C47)*'Crash Benefits'!$E$67,0) -> 0
C48: 41 | D48: =IF(C48<='1) Project Information'!D$14,(1/(1+(IF('1) Project Information'!$E$17>0,'1) Project Information'!$E$17,'1) Project Information'!$D$17)))^C48)*'Crash Benefits'!$E$67,0) -> 0
C49: 42 | D49: =IF(C49<='1) Project Information'!D$14,(1/(1+(IF('1) Project Information'!$E$17>0,'1) Project Information'!$E$17,'1) Project Information'!$D$17)))^C49)*'Crash Benefits'!$E$67,0) -> 0
C50: 43 | D50: =IF(C50<='1) Project Information'!D$14,(1/(1+(IF('1) Project Information'!$E$17>0,'1) Project Information'!$E$17,'1) Project Information'!$D$17)))^C50)*'Crash Benefits'!$E$67,0) -> 0
C51: 44 | D51: =IF(C51<='1) Project Information'!D$14,(1/(1+(IF('1) Project Information'!$E$17>0,'1) Project Information'!$E$17,'1) Project Information'!$D$17)))^C51)*'Crash Benefits'!$E$67,0) -> 0
C52: 45 | D52: =IF(C52<='1) Project Information'!D$14,(1/(1+(IF('1) Project Information'!$E$17>0,'1) Project Information'!$E$17,'1) Project Information'!$D$17)))^C52)*'Crash Benefits'!$E$67,0) -> 0
C53: 46 | D53: =IF(C53<='1) Project Information'!D$14,(1/(1+(IF('1) Project Information'!$E$17>0,'1) Project Information'!$E$17,'1) Project Information'!$D$17)))^C53)*'Crash Benefits'!$E$67,0) -> 0
C54: 47 | D54: =IF(C54<='1) Project Information'!D$14,(1/(1+(IF('1) Project Information'!$E$17>0,'1) Project Information'!$E$17,'1) Project Information'!$D$17)))^C54)*'Crash Benefits'!$E$67,0) -> 0
C55: 48 | D55: =IF(C55<='1) Project Information'!D$14,(1/(1+(IF('1) Project Information'!$E$17>0,'1) Project Information'!$E$17,'1) Project Information'!$D$17)))^C55)*'Crash Benefits'!$E$67,0) -> 0
C56: 49 | D56: =IF(C56<='1) Project Information'!D$14,(1/(1+(IF('1) Project Information'!$E$17>0,'1) Project Information'!$E$17,'1) Project Information'!$D$17)))^C56)*'Crash Benefits'!$E$67,0) -> 0
C57: 50 | D57: =IF(C57<='1) Project Information'!D$14,(1/(1+(IF('1) Project Information'!$E$17>0,'1) Project Information'!$E$17,'1) Project Information'!$D$17)))^C57)*'Crash Benefits'!$E$67,0) -> 0
D58: =SUM(D8:D57) -> 0
C60: (1) | D60: (2) | E60: (3)
B61: Injury Severity Scale | C61: Annual Reduction in Crashes | D61: =Lookup!L7 -> Comprehensive Crash Unit Cost | E61: Annual Reduction Benefit
B62: K | C62: =IF('2) Project Crash Data'!G32>0,'2) Project Crash Data'!G32,'2) Project Crash Data'!F32) -> 0 | D62: 13383100 | E62: =C62*D62 -> 0
B63: A | C63: =IF('2) Project Crash Data'!G33>0,'2) Project Crash Data'!G33,'2) Project Crash Data'!F33) -> 0 | D63: 759600 | E63: =C63*D63 -> 0
B64: B | C64: =IF('2) Project Crash Data'!G34>0,'2) Project Crash Data'!G34,'2) Project Crash Data'!F34) -> 0 | D64: 244000 | E64: =C64*D64 -> 0
B65: C | C65: =IF('2) Project Crash Data'!G35>0,'2) Project Crash Data'!G35,'2) Project Crash Data'!F35) -> 0 | D65: 134200 | E65: =C65*D65 -> 0
B66: O | C66: =IF('2) Project Crash Data'!G36>0,'2) Project Crash Data'!G36,'2) Project Crash Data'!F36) -> 0 | D66: 12500 | E66: =C66*D66 -> 0
B67: TOTAL | E67: =SUM(E62:E66) -> 0

Sheet Travel Time Benefits
B1: ANNUAL TRAVEL TIME BENEFIT
B2: This sheet calculates the annual monetary benefit of travel time savings as a result of the annual crash reductions.
B4: Formula 1: Delay Reduction (3) | D4: = (1) Annual Crash Reduction x (2) Reduction Factor | I4: Color Codes
B6: Formula 2: Annual Benefit | D6: = Total Delay x Unit Value of Time | I6: Model Parameter | J6: 0
I7: Model Calculation | J7: ='2) Project Crash Data'!G34 -> 0
I8: Linked Cell | J8: ='2) Project Crash Data'!E40 -> 0
B10: CALCULATION FOR THE MONETIZATION OF ANNUAL TRAVEL TIME BENEFITS
C11: (1) | D11: (2) | E11: (3)
B12: Severity Scale | C12: Estimated Annual Reduction in Crashes | D12: NHTSA Delay Reduction Factor | E12: Delay Reduction Benefit (Hours)
B13: K | C13: =IF('2) Project Crash Data'!G32>0,'2) Project Crash Data'!G32,'2) Project Crash Data'!F32) -> 0 | D13: ='3) Analysis Parameters'!D11 -> 5147.7 | E13: =C13*D13 -> 0
B14: A | C14: =IF('2) Project Crash Data'!G33>0,'2) Project Crash Data'!G33,'2) Project Crash Data'!F33) -> 0 | D14: ='3) Analysis Parameters'!D12 -> 345.29 | E14: =C14*D14 -> 0
B15: B | C15: =IF('2) Project Crash Data'!G34>0,'2) Project Crash Data'!G34,'2) Project Crash Data'!F34) -> 0 | D15: ='3) Analysis Parameters'!D12 -> 345.29 | E15: =C15*D15 -> 0
B16: C | C16: =IF('2) Project Crash Data'!G35>0,'2) Project Crash Data'!G35,'2) Project Crash Data'!F35) -> 0 | D16: ='3) Analysis Parameters'!D12 -> 345.29 | E16: =C16*D16 -> 0
B17: O | C17: =IF('2) Project Crash Data'!G36>0,'2) Project Crash Data'!G36,'2) Project Crash Data'!F36) -> 0 | D17: ='3) Analysis Parameters'!D13 -> 215 | E17: =C17*D17 -> 0
B18: Total Annual Reductions in Delay (Hours) | E18: =SUM(E13:E17) -> 0
B19: Unit Value of Time (Dollars) | E19: =IF('3) Analysis Parameters'!$E$8<0,'3) Analysis Parameters'!$E$8,'3) Analysis Parameters'!$D$8) -> 27.01466664
B20: Total Annual Benefit for Reductions in Delay (Dollars) | E20: =E18*E19 -> 0
B22: Year | C22: Present Value
B23: 1 | C23: =IF(B23<='1) Project Information'!D$14,(1/(1+(IF('1) Project Information'!$E$17>0,'1) Project Information'!$E$17,'1) Project Information'!$D$17)))^B23)*$E$20,0) -> 0
B24: 2 | C24: =IF(B24<='1) Project Information'!D$14,(1/(1+(IF('1) Project Information'!$E$17>0,'1) Project Information'!$E$17,'1) Project Information'!$D$17)))^B24)*$E$20,0) -> 0
B25: 3 | C25: =IF(B25<='1) Project Information'!D$14,(1/(1+(IF('1) Project Information'!$E$17>0,'1) Project Information'!$E$17,'1) Project Information'!$D$17)))^B25)*$E$20,0) -> 0
B26: 4 | C26: =IF(B26<='1) Project Information'!D$14,(1/(1+(IF('1) Project Information'!$E$17>0,'1) Project Information'!$E$17,'1) Project Information'!$D$17)))^B26)*$E$20,0) -> 0
B27: 5 | C27: =IF(B27<='1) Project Information'!D$14,(1/(1+(IF('1) Project Information'!$E$17>0,'1) Project Information'!$E$17,'1) Project Information'!$D$17)))^B27)*$E$20,0) -> 0
B28: 6 | C28: =IF(B28<='1) Project Information'!D$14,(1/(1+(IF('1) Project Information'!$E$17>0,'1) Project Information'!$E$17,'1) Project Information'!$D$17)))^B28)*$E$20,0) -> 0
B29: 7 | C29: =IF(B29<='1) Project Information'!D$14,(1/(1+(IF('1) Project Information'!$E$17>0,'1) Project Information'!$E$17,'1) Project Information'!$D$17)))^B29)*$E$20,0) -> 0
B30: 8 | C30: =IF(B30<='1) Project Information'!D$14,(1/(1+(IF('1) Project Information'!$E$17>0,'1) Project Information'!$E$17,'1) Project Information'!$D$17)))^B30)*$E$20,0) -> 0
B31: 9 | C31: =IF(B31<='1) Project Information'!D$14,(1/(1+(IF('1) Project Information'!$E$17>0,'1) Project Information'!$E$17,'1) Project Information'!$D$17)))^B31)*$E$20,0) -> 0
B32: 10 | C32: =IF(B32<='1) Project Information'!D$14,(1/(1+(IF('1) Project Information'!$E$17>0,'1) Project Information'!$E$17,'1) Project Information'!$D$17)))^B32)*$E$20,0) -> 0
B33: 11 | C33: =IF(B33<='1) Project Information'!D$14,(1/(1+(IF('1) Project Information'!$E$17>0,'1) Project Information'!$E$17,'1) Project Information'!$D$17)))^B33)*$E$20,0) -> 0
B34: 12 | C34: =IF(B34<='1) Project Information'!D$14,(1/(1+(IF('1) Project Information'!$E$17>0,'1) Project Information'!$E$17,'1) Project Information'!$D$17)))^B34)*$E$20,0) -> 0
B35: 13 | C35: =IF(B35<='1) Project Information'!D$14,(1/(1+(IF('1) Project Information'!$E$17>0,'1) Project Information'!$E$17,'1) Project Information'!$D$17)))^B35)*$E$20,0) -> 0
B36: 14 | C36: =IF(B36<='1) Project Information'!D$14,(1/(1+(IF('1) Project Information'!$E$17>0,'1) Project Information'!$E$17,'1) Project Information'!$D$17)))^B36)*$E$20,0) -> 0
B37: 15 | C37: =IF(B37<='1) Project Information'!D$14,(1/(1+(IF('1) Project Information'!$E$17>0,'1) Project Information'!$E$17,'1) Project Information'!$D$17)))^B37)*$E$20,0) -> 0
B38: 16 | C38: =IF(B38<='1) Project Information'!D$14,(1/(1+(IF('1) Project Information'!$E$17>0,'1) Project Information'!$E$17,'1) Project Information'!$D$17)))^B38)*$E$20,0) -> 0
B39: 17 | C39: =IF(B39<='1) Project Information'!D$14,(1/(1+(IF('1) Project Information'!$E$17>0,'1) Project Information'!$E$17,'1) Project Information'!$D$17)))^B39)*$E$20,0) -> 0
B40: 18 | C40: =IF(B40<='1) Project Information'!D$14,(1/(1+(IF('1) Project Information'!$E$17>0,'1) Project Information'!$E$17,'1) Project Information'!$D$17)))^B40)*$E$20,0) -> 0
B41: 19 | C41: =IF(B41<='1) Project Information'!D$14,(1/(1+(IF('1) Project Information'!$E$17>0,'1) Project Information'!$E$17,'1) Project Information'!$D$17)))^B41)*$E$20,0) -> 0
B42: 20 | C42: =IF(B42<='1) Project Information'!D$14,(1/(1+(IF('1) Project Information'!$E$17>0,'1) Project Information'!$E$17,'1) Project Information'!$D$17)))^B42)*$E$20,0) -> 0
B43: 21 | C43: =IF(B43<='1) Project Information'!D$14,(1/(1+(IF('1) Project Information'!$E$17>0,'1) Project Information'!$E$17,'1) Project Information'!$D$17)))^B43)*$E$20,0) -> 0
B44: 22 | C44: =IF(B44<='1) Project Information'!D$14,(1/(1+(IF('1) Project Information'!$E$17>0,'1) Project Information'!$E$17,'1) Project Information'!$D$17)))^B44)*$E$20,0) -> 0
B45: 23 | C45: =IF(B45<='1) Project Information'!D$14,(1/(1+(IF('1) Project Information'!$E$17>0,'1) Project Information'!$E$17,'1) Project Information'!$D$17)))^B45)*$E$20,0) -> 0
B46: 24 | C46: =IF(B46<='1) Project Information'!D$14,(1/(1+(IF('1) Project Information'!$E$17>0,'1) Project Information'!$E$17,'1) Project Information'!$D$17)))^B46)*$E$20,0) -> 0
B47: 25 | C47: =IF(B47<='1) Project Information'!D$14,(1/(1+(IF('1) Project Information'!$E$17>0,'1) Project Information'!$E$17,'1) Project Information'!$D$17)))^B47)*$E$20,0) -> 0
B48: 26 | C48: =IF(B48<='1) Project Information'!D$14,(1/(1+(IF('1) Project Information'!$E$17>0,'1) Project Information'!$E$17,'1) Project Information'!$D$17)))^B48)*$E$20,0) -> 0
B49: 27 | C49: =IF(B49<='1) Project Information'!D$14,(1/(1+(IF('1) Project Information'!$E$17>0,'1) Project Information'!$E$17,'1) Project Information'!$D$17)))^B49)*$E$20,0) -> 0
B50: 28 | C50: =IF(B50<='1) Project Information'!D$14,(1/(1+(IF('1) Project Information'!$E$17>0,'1) Project Information'!$E$17,'1) Project Information'!$D$17)))^B50)*$E$20,0) -> 0
B51: 29 | C51: =IF(B51<='1) Project Information'!D$14,(1/(1+(IF('1) Project Information'!$E$17>0,'1) Project Information'!$E$17,'1) Project Information'!$D$17)))^B51)*$E$20,0) -> 0
B52: 30 | C52: =IF(B52<='1) Project Information'!D$14,(1/(1+(IF('1) Project Information'!$E$17>0,'1) Project Information'!$E$17,'1) Project Information'!$D$17)))^B52)*$E$20,0) -> 0
B53: 31 | C53: =IF(B53<='1) Project Information'!D$14,(1/(1+(IF('1) Project Information'!$E$17>0,'1) Project Information'!$E$17,'1) Project Information'!$D$17)))^B53)*$E$20,0) -> 0
B54: 32 | C54: =IF(B54<='1) Project Information'!D$14,(1/(1+(IF('1) Project Information'!$E$17>0,'1) Project Information'!$E$17,'1) Project Information'!$D$17)))^B54)*$E$20,0) -> 0
B55: 33 | C55: =IF(B55<='1) Project Information'!D$14,(1/(1+(IF('1) Project Information'!$E$17>0,'1) Project Information'!$E$17,'1) Project Information'!$D$17)))^B55)*$E$20,0) -> 0
B56: 34 | C56: =IF(B56<='1) Project Information'!D$14,(1/(1+(IF('1) Project Information'!$E$17>0,'1) Project Information'!$E$17,'1) Project Information'!$D$17)))^B56)*$E$20,0) -> 0
B57: 35 | C57: =IF(B57<='1) Project Information'!D$14,(1/(1+(IF('1) Project Information'!$E$17>0,'1) Project Information'!$E$17,'1) Project Information'!$D$17)))^B57)*$E$20,0) -> 0
B58: 36 | C58: =IF(B58<='1) Project Information'!D$14,(1/(1+(IF('1) Project Information'!$E$17>0,'1) Project Information'!$E$17,'1) Project Information'!$D$17)))^B58)*$E$20,0) -> 0
B59: 37 | C59: =IF(B59<='1) Project Information'!D$14,(1/(1+(IF('1) Project Information'!$E$17>0,'1) Project Information'!$E$17,'1) Project Information'!$D$17)))^B59)*$E$20,0) -> 0
B60: 38 | C60: =IF(B60<='1) Project Information'!D$14,(1/(1+(IF('1) Project Information'!$E$17>0,'1) Project Information'!$E$17,'1) Project Information'!$D$17)))^B60)*$E$20,0) -> 0
B61: 39 | C61: =IF(B61<='1) Project Information'!D$14,(1/(1+(IF('1) Project Information'!$E$17>0,'1) Project Information'!$E$17,'1) Project Information'!$D$17)))^B61)*$E$20,0) -> 0
B62: 40 | C62: =IF(B62<='1) Project Information'!D$14,(1/(1+(IF('1) Project Information'!$E$17>0,'1) Project Information'!$E$17,'1) Project Information'!$D$17)))^B62)*$E$20,0) -> 0
B63: 41 | C63: =IF(B63<='1) Project Information'!D$14,(1/(1+(IF('1) Project Information'!$E$17>0,'1) Project Information'!$E$17,'1) Project Information'!$D$17)))^B63)*$E$20,0) -> 0
B64: 42 | C64: =IF(B64<='1) Project Information'!D$14,(1/(1+(IF('1) Project Information'!$E$17>0,'1) Project Information'!$E$17,'1) Project Information'!$D$17)))^B64)*$E$20,0) -> 0
B65: 43 | C65: =IF(B65<='1) Project Information'!D$14,(1/(1+(IF('1) Project Information'!$E$17>0,'1) Project Information'!$E$17,'1) Project Information'!$D$17)))^B65)*$E$20,0) -> 0
B66: 44 | C66: =IF(B66<='1) Project Information'!D$14,(1/(1+(IF('1) Project Information'!$E$17>0,'1) Project Information'!$E$17,'1) Project Information'!$D$17)))^B66)*$E$20,0) -> 0
B67: 45 | C67: =IF(B67<='1) Project Information'!D$14,(1/(1+(IF('1) Project Information'!$E$17>0,'1) Project Information'!$E$17,'1) Project Information'!$D$17)))^B67)*$E$20,0) -> 0
B68: 46 | C68: =IF(B68<='1) Project Information'!D$14,(1/(1+(IF('1) Project Information'!$E$17>0,'1) Project Information'!$E$17,'1) Project Information'!$D$17)))^B68)*$E$20,0) -> 0
B69: 47 | C69: =IF(B69<='1) Project Information'!D$14,(1/(1+(IF('1) Project Information'!$E$17>0,'1) Project Information'!$E$17,'1) Project Information'!$D$17)))^B69)*$E$20,0) -> 0
B70: 48 | C70: =IF(B70<='1) Project Information'!D$14,(1/(1+(IF('1) Project Information'!$E$17>0,'1) Project Information'!$E$17,'1) Project Information'!$D$17)))^B70)*$E$20,0) -> 0
B71: 49 | C71: =IF(B71<='1) Project Information'!D$14,(1/(1+(IF('1) Project Information'!$E$17>0,'1) Project Information'!$E$17,'1) Project Information'!$D$17)))^B71)*$E$20,0) -> 0
B72: 50 | C72: =IF(B72<='1) Project Information'!D$14,(1/(1+(IF('1) Project Information'!$E$17>0,'1) Project Information'!$E$17,'1) Project Information'!$D$17)))^B72)*$E$20,0) -> 0
C73: =SUM(C23:C72) -> 0

Sheet LinkCharacteristics (hidden)
A1: Back
A2: Home | C2: Facility Types
C3: ID | D3: Name | E3: Hourly Lane Capacity | F3: FFS | G3: VCCurve | H3: crashRatePickerName | L3: Speed flow curve(s) | W3: Speed flow curve(s)
C4: 1 | D4: Rural Interstate/Principal Arterial | E4: 2200 | F4: 70 | G4: Freeways | H4: Freeways | N4: V/C | O4: Volume | P4: Capacity | Q4: FFS | R4: Speed | S4: Factor | Y4: V/C | Z4: Factor
C5: 2 | D5: Urban Interstate/Expressway | E5: 2200 | F5: 70 | G5: Freeways | H5: Freeways | L5: Freeways | N5: 0.2 | O5: =N5*$E$4 -> 440 | P5: =$E$4 -> 2200 | Q5: =$F$4 -> 70 | R5: =Q5*S5 -> 69.99831266 | S5: =1/(1+0.312*N5^5.883) -> 0.9999758952 | W5: Freeways | Y5: 0.2 | Z5: 0.9999758952
C6: 3 | D6: Urban Arterial | E6: 1800 | F6: 45 | G6: Arterials | H6: Arterials | N6: 0.3 | O6: =N6*$E$4 -> 660 | P6: =$E$4 -> 2200 | Q6: =$F$4 -> 70 | R6: =Q6*S6 -> 69.98167503 | S6: =1/(1+0.312*N6^5.883) -> 0.9997382147 | Y6: 0.3 | Z6: 0.9997382147
C7: 4 | D7: Rural Other | E7: 1600 | F7: 40 | G7: Ramps | H7: Arterials | N7: 0.5 | O7: 1100 | P7: 2200 | Q7: 70 | R7: 69.63186833 | S7: =1/(1+0.312*N7^5.883) -> 0.9947409762 | Y7: 0.5 | Z7: 0.9947409762
C8: 5 | D8: Urban Other | E8: 1600 | F8: 35 | G8: Arterials | H8: Arterials | N8: 0.7 | O8: 1540 | P8: 2200 | Q8: 70 | R8: 67.41979741 | S8: 0.963139963 | Y8: 0.7 | Z8: 0.963139963
C9: 6 | N9: 0.8 | O9: 1760 | P9: 2200 | Q9: 70 | R9: 64.57848297 | S9: 0.9225497567 | Y9: 0.8 | Z9: 0.9225497567
N10: 0.9 | O10: 1980 | P10: 2200 | Q10: 70 | R10: 59.93837273 | S10: 0.8562624675 | U10: =+S10*Q10 -> 59.93837273 | Y10: 0.9 | Z10: 0.8562624675
N11: 1 | O11: 2200 | P11: 2200 | Q11: 70 | R11: 53.35365854 | S11: 0.762195122 | Y11: 1 | Z11: 0.762195122
N12: 1.1 | O12: 2420 | P12: 2200 | Q12: 70 | R12: 45.26064033 | S12: 0.6465805761 | Y12: 1.1 | Z12: 0.6465805761
N13: 1.2 | O13: 2640 | P13: 2200 | Q13: 70 | R13: 36.61156118 | S13: 0.5230223025 | Y13: 1.2 | Z13: 0.5230223025
N14: 1.4 | O14: 3080 | P14: 2200 | Q14: 70 | R14: 21.48208057 | S14: 0.3068868653 | Y14: 1.4 | Z14: 0.3068868653
N15: 1.6 | O15: 3520 | P15: 2200 | Q15: 70 | R15: 11.75598117 | S15: 0.1679425881 | Y15: 1.6 | Z15: 0.1679425881
N16: 1.8 | O16: 3960 | P16: 2200 | Q16: 70 | R16: 6.41815746 | S16: 0.09168796371 | Y16: 1.8 | Z16: 0.09168796371
N17: 2 | O17: 4400 | P17: 2200 | Q17: 70 | R17: 3.605913791 | S17: 0.05151305415 | Y17: 2 | Z17: 0.05151305415
N18: 2.5 | O18: 5500 | P18: 2200 | Q18: 70 | R18: 1.00823459 | S18: 0.01440335129 | Y18: 2.5 | Z18: 0.01440335129
N19: 3 | O19: 6600 | P19: 2200 | Q19: 70 | R19: 0.3482356159 | S19: 0.004974794513 | Y19: 3 | Z19: 0.004974794513
N20: 4 | O20: 8800 | P20: 2200 | Q20: 70 | R20: 0.06436133182 | S20: 0.0009194475974 | Y20: 4 | Z20: 0.0009194475974
N21: 5 | O21: 11000 | P21: 2200 | Q21: 70 | R21: 0.01732987296 | S21: 0.0002475696137 | Y21: 5 | Z21: 0.0002475696137
N22: 6 | O22: 13200 | P22: 2200 | Q22: 70 | R22: 0.005929838268 | S22: 8.471197526e-05 | Y22: 6 | Z22: 8.471197526e-05
N23: 12 | O23: 26400 | P23: 2200 | Q23: 70 | R23: 0.0001004892378 | S23: 1.43556054e-06 | Y23: 12 | Z23: 1.43556054e-06
L24: Arterials | N24: 0.2 | O24: =N24*$E$6 -> 360 | P24: =$E$6 -> 1800 | Q24: =$F$6 -> 45 | R24: =Q24*S24 -> 44.81601291 | S24: =1/(1+0.514*N24^3.001) -> 0.995911398 | W24: Arterials | Y24: 0.2 | Z24: 0.995911398
N25: 0.3 | O25: =N25*$E$6 -> 540 | P25: =$E$6 -> 1800 | Q25: =$F$6 -> 45 | R25: 44.38476934 | S25: =1/(1+0.514*N25^3.001) -> 0.9863282075 | Y25: 0.3 | Z25: 0.9863282075
N26: 0.5 | O26: 900 | P26: 1800 | Q26: 45 | R26: 42.28506695 | S26: 0.9396681544 | Y26: 0.5 | Z26: 0.9396681544
N27: 0.7 | O27: 1260 | P27: 1800 | Q27: 45 | R27: 38.25752681 | S27: 0.8501672624 | Y27: 0.7 | Z27: 0.8501672624
N28: 0.8 | O28: 1440 | P28: 1800 | Q28: 45 | R28: 35.62637108 | S28: 0.791697135 | Y28: 0.8 | Z28: 0.791697135
N29: 0.9 | O29: 1620 | P29: 1800 | Q29: 45 | R29: 32.73521196 | S29: 0.7274491547 | Y29: 0.9 | Z29: 0.7274491547
N30: 1 | O30: 1800 | P30: 1800 | Q30: 45 | R30: 29.72258917 | S30: 0.6605019815 | Y30: 1 | Z30: 0.6605019815
N31: 1.1 | O31: 1980 | P31: 1800 | Q31: 45 | R31: 26.71892956 | S31: 0.5937539902 | Y31: 1.1 | Z31: 0.5937539902
N32: 1.2 | O32: 2160 | P32: 1800 | Q32: 45 | R32: 23.8302782 | S32: 0.5295617378 | Y32: 1.2 | Z32: 0.5295617378
N33: 1.4 | O33: 2520 | P33: 1800 | Q33: 45 | R33: 18.66530117 | S33: 0.4147844705 | Y33: 1.4 | Z33: 0.4147844705
N34: 1.6 | O34: 2880 | P34: 1800 | Q34: 45 | R34: 14.48653094 | S34: 0.3219229097 | Y34: 1.6 | Z34: 0.3219229097
N35: 1.8 | O35: 3240 | P35: 1800 | Q35: 45 | R35: 11.25165823 | S35: 0.2500368495 | Y35: 1.8 | Z35: 0.2500368495
N36: 2 | O36: 3600 | P36: 1800 | Q36: 45 | R36: 8.797909882 | S36: 0.1955091085 | Y36: 2 | Z36: 0.1955091085
N37: 2.5 | O37: 4500 | P37: 1800 | Q37: 45 | R37: 4.978640343 | S37: 0.1106364521 | Y37: 2.5 | Z37: 0.1106364521
N38: 3 | O38: 5400 | P38: 1800 | Q38: 45 | R38: 3.021502032 | S38: 0.0671444896 | Y38: 3 | Z38: 0.0671444896
N39: 4 | O39: 7200 | P39: 1800 | Q39: 45 | R39: 1.325805306 | S39: 0.02946234014 | Y39: 4 | Z39: 0.02946234014
N40: 5 | O40: 9000 | P40: 1800 | Q40: 45 | R40: 0.6885630782 | S40: 0.01530140174 | Y40: 5 | Z40: 0.01530140174
N41: 6 | O41: 10800 | P41: 1800 | Q41: 45 | R41: 0.4009869389 | S41: 0.008910820865 | Y41: 6 | Z41: 0.008910820865
N42: 12 | O42: 21600 | P42: 1800 | Q42: 45 | R42: 0.05048228426 | S42: 0.001121828539 | Y42: 12 | Z42: 0.001121828539
L43: Ramps | N43: 0.2 | O43: =N43*$E$7 -> 320 | P43: =$E$7 -> 1600 | Q43: =$F$7 -> 40 | R43: 39.99903581 | S43: 0.9999758952 | W43: Ramps | Y43: 0.2 | Z43: 0.9999758952
N44: 0.3 | O44: =N44*$E$7 -> 480 | P44: =$E$7 -> 1600 | Q44: =$F$7 -> 40 | R44: 39.98952859 | S44: 0.9997382147 | Y44: 0.3 | Z44: 0.9997382147
N45: 0.5 | O45: 800 | P45: 1600 | Q45: 40 | R45: 39.78963905 | S45: 0.9947409762 | Y45: 0.5 | Z45: 0.9947409762
N46: 0.7 | O46: 1120 | P46: 1600 | Q46: 40 | R46: 38.52559852 | S46: 0.963139963 | Y46: 0.7 | Z46: 0.963139963
N47: 0.8 | O47: 1280 | P47: 1600 | Q47: 40 | R47: 36.90199027 | S47: 0.9225497567 | Y47: 0.8 | Z47: 0.9225497567
N48: 0.9 | O48: 1440 | P48: 1600 | Q48: 40 | R48: 34.2504987 | S48: 0.8562624675 | Y48: 0.9 | Z48: 0.8562624675
N49: 1 | O49: 1600 | P49: 1600 | Q49: 40 | R49: 30.48780488 | S49: 0.762195122 | Y49: 1 | Z49: 0.762195122
N50: 1.1 | O50: 1760 | P50: 1600 | Q50: 40 | R50: 25.86322304 | S50: 0.6465805761 | Y50: 1.1 | Z50: 0.6465805761
N51: 1.2 | O51: 1920 | P51: 1600 | Q51: 40 | R51: 20.9208921 | S51: 0.5230223025 | Y51: 1.2 | Z51: 0.5230223025
N52: 1.4 | O52: 2240 | P52: 1600 | Q52: 40 | R52: 12.27547461 | S52: 0.3068868653 | Y52: 1.4 | Z52: 0.3068868653
N53: 1.6 | O53: 2560 | P53: 1600 | Q53: 40 | R53: 6.717703524 | S53: 0.1679425881 | Y53: 1.6 | Z53: 0.1679425881
N54: 1.8 | O54: 2880 | P54: 1600 | Q54: 40 | R54: 3.667518548 | S54: 0.09168796371 | Y54: 1.8 | Z54: 0.09168796371
N55: 2 | O55: 3200 | P55: 1600 | Q55: 40 | R55: 2.060522166 | S55: 0.05151305415 | Y55: 2 | Z55: 0.05151305415
N56: 2.5 | O56: 4000 | P56: 1600 | Q56: 40 | R56: 0.5761340517 | S56: 0.01440335129 | Y56: 2.5 | Z56: 0.01440335129
N57: 3 | O57: 4800 | P57: 1600 | Q57: 40 | R57: 0.1989917805 | S57: 0.004974794513 | Y57: 3 | Z57: 0.004974794513
N58: 4 | O58: 6400 | P58: 1600 | Q58: 40 | R58: 0.0367779039 | S58: 0.0009194475974 | Y58: 4 | Z58: 0.0009194475974
N59: 5 | O59: 8000 | P59: 1600 | Q59: 40 | R59: 0.009902784549 | S59: 0.0002475696137 | Y59: 5 | Z59: 0.0002475696137
N60: 6 | O60: 9600 | P60: 1600 | Q60: 40 | R60: 0.00338847901 | S60: 8.471197526e-05 | Y60: 6 | Z60: 8.471197526e-05
N61: 12 | O61: 19200 | P61: 1600 | Q61: 40 | R61: 5.742242158e-05 | S61: 1.43556054e-06 | Y61: 12 | Z61: 1.43556054e-06

Sheet Reliability Benefits
A1: ANNUAL RELIABILITY TIME BENEFIT
A2: This sheet calculates the annual monetary benefit of reliability as a result of the annual crash reductions.
A4: Reliability Calculations | B4: Input Data | C4: Source
A5: Period of Analysis (Years) | B5: ='1) Project Information'!D14 -> 20 | C5: User or Default
A6: Segment Type | B6: =inputFacilityType -> Urban Interstate/Expressway | C6: User or Default
A7: Segment Length (Miles) | B7: =IF('1) Project Information'!$E$25>0,'1) Project Information'!$E$25,'1) Project Information'!$D$25) -> 5 | C7: User or Default
A8: Number of Lanes | B8: =IF('1) Project Information'!$E$26>0,'1) Project Information'!$E$26,'1) Project Information'!$D$26) -> 2 | C8: User or Default
A9: Free Flow Speed (MPH) | B9: =defaultFFS -> 70 | C9: User or Default
A10: Traffic Volume (during peak period) | B10: =+inputLinkVolume -> 0 | C10: User or Default
A11: Vehicle Hours of Travel at FFS (during peak period) | B11: =+$B$23/(IF(inputFFS>0,inputFFS,defaultFFS)) -> 0 | C11: Calc HCM or User
A12: Freeway Link Capacity (All Lanes - peak period), v/h/*l | B12: =(IF('1) Project Information'!$E$26>0,'1) Project Information'!$E$26,'1) Project Information'!$D$26))*(IF('1) Project Information'!$E$30>0,'1) Project Information'!$E$30,'1) Project Information'!$D$30))*VLOOKUP('Reliability Benefits'!$B$6,LinkCharacteristics!$D$4:$G$8,2,FALSE) -> 8800 | C12: Calc HCM or User | E12: Vehicles per hour for all lanes
A13: Hours of Peak Traffic per Day | B13: =IF('1) Project Information'!$E$30>0,'1) Project Information'!$E$30,'1) Project Information'!$D$30) -> 2 | C13: User or Default
A14: Days of Analysis per Year | B14: =IF('1) Project Information'!$E$31>0,'1) Project Information'!$E$31,'1) Project Information'!$D$31) -> 260
A15: Value of Time ($/Hr.) Personal | B15: =IF('3) Analysis Parameters'!$E$8<0,'3) Analysis Parameters'!$E$8,'3) Analysis Parameters'!$D$8) -> 27.01466664 | C15: User or Default
A16: Reliability Ratio Personal | B16: =IF('1) Project Information'!$E$32>0,'1) Project Information'!$E$32,'1) Project Information'!$D$32) -> 1 | C16: User or Default
A17: Reliability Ratio Freight | B17: =IF('1) Project Information'!$E$33>0,'1) Project Information'!$E$33,'1) Project Information'!$D$33) -> 1.2 | C17: User or Default
A20: Calculations | B20: Without Countermeasure | C20: With Countermeasure
A21: V/C | B21: =+$B$10/$B$12 -> 0 | C21: =+$B$21 -> 0
A22: Calculated Congested Speed, HCM, MPH | B22: =FirstNonZero(inputFFS,defaultFFS)*speedFromVC(inputLinkVolume/override(overrideBaselineCapacity,calculatedBaselineCapacity),OFFSET(vcCurves,MATCH(INDEX(facilityTypes,MATCH(inputFacilityType,facilityTypeId,0),5),INDIRECT("LinkCharacteristics!"&ADDRESS(ROW(vcCurves),COLUMN(vcCurves))&":"&ADDRESS(ROW(vcCurves)+ROWS(vcCurves),COLUMN(vcCurves))),0) - 1,0)) -> 69.99831266 | C22: =$C$23/$C$25 -> 
A23: Vehicle Miles Traveled (VMT) per Year | B23: =IF('1) Project Information'!$E$25>0,'1) Project Information'!$E$25,'1) Project Information'!$D$25)*inputLinkVolume*IF('1) Project Information'!$E$31>0,'1) Project Information'!$E$31,'1) Project Information'!$D$31) -> 0 | C23: =+B23 -> 0
A24: Crash Delay Hours Reduced Per Year | C24: ='Travel Time Benefits'!$E$18 -> 0
A25: Vehicle Hours of Travel, HCM, (VHT), per year | B25: =+$B$23/$B$22 -> 0 | C25: =+$B$25-$C$24 -> 0
A26: Hours of Capacity Related Delay Over FFS, Per Year | B26: =(B25-B11)*IF('1) Project Information'!$E$31>0,'1) Project Information'!$E$31,'1) Project Information'!$D$31) -> 0
A27: Travel Time Index at Mean (TTIm) | B27: =($B$25/$B$22)/($B$25/IF(inputFFS>0,inputFFS,defaultFFS)) ->  | C27: =(C25/C22)/(C25/IF(inputFFS>0,inputFFS,defaultFFS)) -> 
A28: Travel Time Index at 80% on-Time (TTI80) | B28: =5.3746/(1+EXP(-1.5782-0.85867*$B$27)*(1/0.04953)) ->  | C28: =5.3746/(1+EXP(-1.5782-0.85867*$C$27)*(1/0.04953)) -> 
A29: Buffer Time at 80% On-Time Assurance (BT80) | B29: =($B$28-$B$27)*$B$25 ->  | C29: =($C$28-$C$27)*$C$25 -> 
A30: Buffer Time Saved | C30: =+$B$29-$C$29 -> 
A31: Value of Recurring Delay | B31: =+$B$26*IF('1) Project Information'!$E$22>0,'1) Project Information'!$E$22,'1) Project Information'!$D$22) -> 0
A32: Value of Buffer Time at 80% | B32: =$B$29*IF('1) Project Information'!$E$22>0,'1) Project Information'!$E$22,'1) Project Information'!$D$22) -> 
A33: Value of Recurring Delay | C33: =(IF(OR(B6="Rural Other",B6="Urban Other"),0,+$C$30*IF('1) Project Information'!$E$22>0,'1) Project Information'!$E$22,'1) Project Information'!$D$22)))*IF('1) Project Information'!$E$33>0,'1) Project Information'!$E$33,'1) Project Information'!$D$33)*IF('1) Project Information'!$E$32>0,'1) Project Information'!$E$32,'1) Project Information'!$D$32) -> 

Sheet Vehicle Operation Benefits
B1: ANNUAL VEHICLE OPERATING COST BENEFIT
B2: This sheet calculates the annual monetary benefit to fuel-related vehicle operating costs as a result of crash reductions.
B4: Formula 1: Annual fuel use reduction | D4: = (1) Estimated Annual Crash Reduction x (2) NHTSA Fuel Use Factor | K4: Color Codes
K5: Model Parameter | L5: 0
B6: Formula 2: Annual CO2 reduction | D6: = (5) Estimated Annual Crash Reduction x (6) NHTSA CO2 Factor | K6: Model Calculation | L6: ='2) Project Crash Data'!I34 -> 0
K7: Linked Cell | L7: ='2) Project Crash Data'!G39 -> 0
B8: Monetization of Annual Fuel-Related VOC Benefits
C9: (1) | D9: (2) | E9: (3)
B10: Injury Scale | C10: Estimated Annual Crash Reduction | D10: NHTSA Fuel Use Consumption | E10: Annual Fuel Use Reduction Benefit (Gallons)
B11: K | C11: =IF('2) Project Crash Data'!G32>0,'2) Project Crash Data'!G32,'2) Project Crash Data'!F32) -> 0 | D11: ='3) Analysis Parameters'!D16 -> 1951 | E11: =C11*D11 -> 0
B12: A | C12: =IF('2) Project Crash Data'!G33>0,'2) Project Crash Data'!G33,'2) Project Crash Data'!F33) -> 0 | D12: ='3) Analysis Parameters'!D17 -> 412 | E12: =C12*D12 -> 0
B13: B | C13: =IF('2) Project Crash Data'!G34>0,'2) Project Crash Data'!G34,'2) Project Crash Data'!F34) -> 0 | D13: ='3) Analysis Parameters'!D17 -> 412 | E13: =C13*D13 -> 0
B14: C | C14: =IF('2) Project Crash Data'!G35>0,'2) Project Crash Data'!G35,'2) Project Crash Data'!F35) -> 0 | D14: ='3) Analysis Parameters'!D17 -> 412 | E14: =C14*D14 -> 0
B15: O | C15: =IF('2) Project Crash Data'!G36>0,'2) Project Crash Data'!G36,'2) Project Crash Data'!F36) -> 0 | D15: ='3) Analysis Parameters'!D18 -> 351 | E15: =C15*D15 -> 0
B16: Total Annual Fuel Reduction (Gallons) | E16: =SUM(E11:E15) -> 0
B17: Unit Value of Fuel | E17: =IF('1) Project Information'!$E$19>0,'1) Project Information'!$E$19,'1) Project Information'!$D$19) -> 2.5
B18: Total Annual Benefit of Fuel Reduction ($ Dollars) | E18: =E16*E17 -> 0
B23: Year | C23: Present Value
B24: 1 | C24: =IF(B24<='1) Project Information'!D$14,(1/(1+(IF('1) Project Information'!$E$17>0,'1) Project Information'!$E$17,'1) Project Information'!$D$17)))^B24)*#REF!,0) -> 
B25: 2 | C25: =IF(B25<='1) Project Information'!D$14,(1/(1+(IF('1) Project Information'!$E$17>0,'1) Project Information'!$E$17,'1) Project Information'!$D$17)))^B25)*#REF!,0) -> 
B26: 3 | C26: =IF(B26<='1) Project Information'!D$14,(1/(1+(IF('1) Project Information'!$E$17>0,'1) Project Information'!$E$17,'1) Project Information'!$D$17)))^B26)*#REF!,0) -> 
B27: 4 | C27: =IF(B27<='1) Project Information'!D$14,(1/(1+(IF('1) Project Information'!$E$17>0,'1) Project Information'!$E$17,'1) Project Information'!$D$17)))^B27)*#REF!,0) -> 
B28: 5 | C28: =IF(B28<='1) Project Information'!D$14,(1/(1+(IF('1) Project Information'!$E$17>0,'1) Project Information'!$E$17,'1) Project Information'!$D$17)))^B28)*#REF!,0) -> 
B29: 6 | C29: =IF(B29<='1) Project Information'!D$14,(1/(1+(IF('1) Project Information'!$E$17>0,'1) Project Information'!$E$17,'1) Project Information'!$D$17)))^B29)*#REF!,0) -> 
B30: 7 | C30: =IF(B30<='1) Project Information'!D$14,(1/(1+(IF('1) Project Information'!$E$17>0,'1) Project Information'!$E$17,'1) Project Information'!$D$17)))^B30)*#REF!,0) -> 
B31: 8 | C31: =IF(B31<='1) Project Information'!D$14,(1/(1+(IF('1) Project Information'!$E$17>0,'1) Project Information'!$E$17,'1) Project Information'!$D$17)))^B31)*#REF!,0) -> 
B32: 9 | C32: =IF(B32<='1) Project Information'!D$14,(1/(1+(IF('1) Project Information'!$E$17>0,'1) Project Information'!$E$17,'1) Project Information'!$D$17)))^B32)*#REF!,0) -> 
B33: 10 | C33: =IF(B33<='1) Project Information'!D$14,(1/(1+(IF('1) Project Information'!$E$17>0,'1) Project Information'!$E$17,'1) Project Information'!$D$17)))^B33)*#REF!,0) -> 
B34: 11 | C34: =IF(B34<='1) Project Information'!D$14,(1/(1+(IF('1) Project Information'!$E$17>0,'1) Project Information'!$E$17,'1) Project Information'!$D$17)))^B34)*#REF!,0) -> 
B35: 12 | C35: =IF(B35<='1) Project Information'!D$14,(1/(1+(IF('1) Project Information'!$E$17>0,'1) Project Information'!$E$17,'1) Project Information'!$D$17)))^B35)*#REF!,0) -> 
B36: 13 | C36: =IF(B36<='1) Project Information'!D$14,(1/(1+(IF('1) Project Information'!$E$17>0,'1) Project Information'!$E$17,'1) Project Information'!$D$17)))^B36)*#REF!,0) -> 
B37: 14 | C37: =IF(B37<='1) Project Information'!D$14,(1/(1+(IF('1) Project Information'!$E$17>0,'1) Project Information'!$E$17,'1) Project Information'!$D$17)))^B37)*#REF!,0) -> 
B38: 15 | C38: =IF(B38<='1) Project Information'!D$14,(1/(1+(IF('1) Project Information'!$E$17>0,'1) Project Information'!$E$17,'1) Project Information'!$D$17)))^B38)*#REF!,0) -> 
B39: 16 | C39: =IF(B39<='1) Project Information'!D$14,(1/(1+(IF('1) Project Information'!$E$17>0,'1) Project Information'!$E$17,'1) Project Information'!$D$17)))^B39)*#REF!,0) -> 
B40: 17 | C40: =IF(B40<='1) Project Information'!D$14,(1/(1+(IF('1) Project Information'!$E$17>0,'1) Project Information'!$E$17,'1) Project Information'!$D$17)))^B40)*#REF!,0) -> 
B41: 18 | C41: =IF(B41<='1) Project Information'!D$14,(1/(1+(IF('1) Project Information'!$E$17>0,'1) Project Information'!$E$17,'1) Project Information'!$D$17)))^B41)*#REF!,0) -> 
B42: 19 | C42: =IF(B42<='1) Project Information'!D$14,(1/(1+(IF('1) Project Information'!$E$17>0,'1) Project Information'!$E$17,'1) Project Information'!$D$17)))^B42)*#REF!,0) -> 
B43: 20 | C43: =IF(B43<='1) Project Information'!D$14,(1/(1+(IF('1) Project Information'!$E$17>0,'1) Project Information'!$E$17,'1) Project Information'!$D$17)))^B43)*#REF!,0) -> 
B44: 21 | C44: =IF(B44<='1) Project Information'!D$14,(1/(1+(IF('1) Project Information'!$E$17>0,'1) Project Information'!$E$17,'1) Project Information'!$D$17)))^B44)*#REF!,0) -> 0
B45: 22 | C45: =IF(B45<='1) Project Information'!D$14,(1/(1+(IF('1) Project Information'!$E$17>0,'1) Project Information'!$E$17,'1) Project Information'!$D$17)))^B45)*#REF!,0) -> 0
B46: 23 | C46: =IF(B46<='1) Project Information'!D$14,(1/(1+(IF('1) Project Information'!$E$17>0,'1) Project Information'!$E$17,'1) Project Information'!$D$17)))^B46)*#REF!,0) -> 0
B47: 24 | C47: =IF(B47<='1) Project Information'!D$14,(1/(1+(IF('1) Project Information'!$E$17>0,'1) Project Information'!$E$17,'1) Project Information'!$D$17)))^B47)*#REF!,0) -> 0
B48: 25 | C48: =IF(B48<='1) Project Information'!D$14,(1/(1+(IF('1) Project Information'!$E$17>0,'1) Project Information'!$E$17,'1) Project Information'!$D$17)))^B48)*#REF!,0) -> 0
B49: 26 | C49: =IF(B49<='1) Project Information'!D$14,(1/(1+(IF('1) Project Information'!$E$17>0,'1) Project Information'!$E$17,'1) Project Information'!$D$17)))^B49)*#REF!,0) -> 0
B50: 27 | C50: =IF(B50<='1) Project Information'!D$14,(1/(1+(IF('1) Project Information'!$E$17>0,'1) Project Information'!$E$17,'1) Project Information'!$D$17)))^B50)*#REF!,0) -> 0
B51: 28 | C51: =IF(B51<='1) Project Information'!D$14,(1/(1+(IF('1) Project Information'!$E$17>0,'1) Project Information'!$E$17,'1) Project Information'!$D$17)))^B51)*#REF!,0) -> 0
B52: 29 | C52: =IF(B52<='1) Project Information'!D$14,(1/(1+(IF('1) Project Information'!$E$17>0,'1) Project Information'!$E$17,'1) Project Information'!$D$17)))^B52)*#REF!,0) -> 0
B53: 30 | C53: =IF(B53<='1) Project Information'!D$14,(1/(1+(IF('1) Project Information'!$E$17>0,'1) Project Information'!$E$17,'1) Project Information'!$D$17)))^B53)*#REF!,0) -> 0
B54: 31 | C54: =IF(B54<='1) Project Information'!D$14,(1/(1+(IF('1) Project Information'!$E$17>0,'1) Project Information'!$E$17,'1) Project Information'!$D$17)))^B54)*#REF!,0) -> 0
B55: 32 | C55: =IF(B55<='1) Project Information'!D$14,(1/(1+(IF('1) Project Information'!$E$17>0,'1) Project Information'!$E$17,'1) Project Information'!$D$17)))^B55)*#REF!,0) -> 0
B56: 33 | C56: =IF(B56<='1) Project Information'!D$14,(1/(1+(IF('1) Project Information'!$E$17>0,'1) Project Information'!$E$17,'1) Project Information'!$D$17)))^B56)*#REF!,0) -> 0
B57: 34 | C57: =IF(B57<='1) Project Information'!D$14,(1/(1+(IF('1) Project Information'!$E$17>0,'1) Project Information'!$E$17,'1) Project Information'!$D$17)))^B57)*#REF!,0) -> 0
B58: 35 | C58: =IF(B58<='1) Project Information'!D$14,(1/(1+(IF('1) Project Information'!$E$17>0,'1) Project Information'!$E$17,'1) Project Information'!$D$17)))^B58)*#REF!,0) -> 0
B59: 36 | C59: =IF(B59<='1) Project Information'!D$14,(1/(1+(IF('1) Project Information'!$E$17>0,'1) Project Information'!$E$17,'1) Project Information'!$D$17)))^B59)*#REF!,0) -> 0
B60: 37 | C60: =IF(B60<='1) Project Information'!D$14,(1/(1+(IF('1) Project Information'!$E$17>0,'1) Project Information'!$E$17,'1) Project Information'!$D$17)))^B60)*#REF!,0) -> 0
B61: 38 | C61: =IF(B61<='1) Project Information'!D$14,(1/(1+(IF('1) Project Information'!$E$17>0,'1) Project Information'!$E$17,'1) Project Information'!$D$17)))^B61)*#REF!,0) -> 0
B62: 39 | C62: =IF(B62<='1) Project Information'!D$14,(1/(1+(IF('1) Project Information'!$E$17>0,'1) Project Information'!$E$17,'1) Project Information'!$D$17)))^B62)*#REF!,0) -> 0
B63: 40 | C63: =IF(B63<='1) Project Information'!D$14,(1/(1+(IF('1) Project Information'!$E$17>0,'1) Project Information'!$E$17,'1) Project Information'!$D$17)))^B63)*#REF!,0) -> 0
B64: 41 | C64: =IF(B64<='1) Project Information'!D$14,(1/(1+(IF('1) Project Information'!$E$17>0,'1) Project Information'!$E$17,'1) Project Information'!$D$17)))^B64)*#REF!,0) -> 0
B65: 42 | C65: =IF(B65<='1) Project Information'!D$14,(1/(1+(IF('1) Project Information'!$E$17>0,'1) Project Information'!$E$17,'1) Project Information'!$D$17)))^B65)*#REF!,0) -> 0
B66: 43 | C66: =IF(B66<='1) Project Information'!D$14,(1/(1+(IF('1) Project Information'!$E$17>0,'1) Project Information'!$E$17,'1) Project Information'!$D$17)))^B66)*#REF!,0) -> 0
B67: 44 | C67: =IF(B67<='1) Project Information'!D$14,(1/(1+(IF('1) Project Information'!$E$17>0,'1) Project Information'!$E$17,'1) Project Information'!$D$17)))^B67)*#REF!,0) -> 0
B68: 45 | C68: =IF(B68<='1) Project Information'!D$14,(1/(1+(IF('1) Project Information'!$E$17>0,'1) Project Information'!$E$17,'1) Project Information'!$D$17)))^B68)*#REF!,0) -> 0
B69: 46 | C69: =IF(B69<='1) Project Information'!D$14,(1/(1+(IF('1) Project Information'!$E$17>0,'1) Project Information'!$E$17,'1) Project Information'!$D$17)))^B69)*#REF!,0) -> 0
B70: 47 | C70: =IF(B70<='1) Project Information'!D$14,(1/(1+(IF('1) Project Information'!$E$17>0,'1) Project Information'!$E$17,'1) Project Information'!$D$17)))^B70)*#REF!,0) -> 0
B71: 48 | C71: =IF(B71<='1) Project Information'!D$14,(1/(1+(IF('1) Project Information'!$E$17>0,'1) Project Information'!$E$17,'1) Project Information'!$D$17)))^B71)*#REF!,0) -> 0
B72: 49 | C72: =IF(B72<='1) Project Information'!D$14,(1/(1+(IF('1) Project Information'!$E$17>0,'1) Project Information'!$E$17,'1) Project Information'!$D$17)))^B72)*#REF!,0) -> 0
B73: 50 | C73: =IF(B73<='1) Project Information'!D$14,(1/(1+(IF('1) Project Information'!$E$17>0,'1) Project Information'!$E$17,'1) Project Information'!$D$17)))^B73)*#REF!,0) -> 0
C74: =SUM(C24:C73) -> 

Sheet Emission Benefits
B1: ANNUAL EMISSIONS BENEFIT
B2: This sheet calculates the annual monetary benefit of emissions reductions as a result of crash reductions. | O2: Color Codes
O3: Model Parameter | P3: 0
B4: Formula 1: Annual Emissions Benefit (3) | F4: = Annual Crash Reduction (1) x NHTSA Emissions Factor (2) | O4: Model Calculation | P4: ='2) Project Crash Data'!K36 -> 0
O5: Linked Cell | P5: ='2) Project Crash Data'!K37 -> 0
B6: Annual Estimated Reduction in Crash Frequency and Severity (1)
B7: ='2) Project Crash Data'!B31 -> Injury Severity Scale | C7: Annual reductions in crashes with treatment
B8: ='2) Project Crash Data'!B32 -> K | C8: =IF('2) Project Crash Data'!G32>0,'2) Project Crash Data'!G32,'2) Project Crash Data'!F32) -> 0
B9: ='2) Project Crash Data'!B33 -> A | C9: =IF('2) Project Crash Data'!G33>0,'2) Project Crash Data'!G33,'2) Project Crash Data'!F33) -> 0
B10: ='2) Project Crash Data'!B34 -> B | C10: =IF('2) Project Crash Data'!G34>0,'2) Project Crash Data'!G34,'2) Project Crash Data'!F34) -> 0
B11: ='2) Project Crash Data'!B35 -> C | C11: =IF('2) Project Crash Data'!G35>0,'2) Project Crash Data'!G35,'2) Project Crash Data'!F35) -> 0
B12: ='2) Project Crash Data'!B36 -> O | C12: =IF('2) Project Crash Data'!G36>0,'2) Project Crash Data'!G36,'2) Project Crash Data'!F36) -> 0
B14: NHTSA Emissions Factors (2) ($ Dollars)
C15: =Lookup!AH8 -> CO2 | D15: =Lookup!AI8 -> CO | E15: =Lookup!AJ8 -> NOx | F15: =Lookup!AK8 -> PM10 | G15: =Lookup!AL8 -> PM2.5 | H15: =Lookup!AM8 -> SO2 | I15: =Lookup!AN8 -> VOC
B16: Fatality (K) | C16: ='3) Analysis Parameters'!D22 -> 827.900944 | D16: ='3) Analysis Parameters'!E22 -> 0 | E16: ='3) Analysis Parameters'!F22 -> 197.588768 | F16: ='3) Analysis Parameters'!G22 -> 0 | G16: ='3) Analysis Parameters'!H22 -> 895.5258 | H16: ='3) Analysis Parameters'!I22 -> 70.785208 | I16: ='3) Analysis Parameters'!J22 -> 23.613616 | J16: =SUM(C16:I16) -> 2015.414336
B17: Injury (A+B+C) | C17: ='3) Analysis Parameters'!D23 -> 174.909904 | D17: ='3) Analysis Parameters'!E23 -> 0 | E17: ='3) Analysis Parameters'!F23 -> 41.741128 | F17: ='3) Analysis Parameters'!G23 -> 0 | G17: ='3) Analysis Parameters'!H23 -> 189.153744 | H17: ='3) Analysis Parameters'!I23 -> 14.978288 | I17: ='3) Analysis Parameters'!J23 -> 4.985344 | J17: =SUM(C17:I17) -> 425.768408
B18: PDO (O) | C18: ='3) Analysis Parameters'!D24 -> 148.759104 | D18: ='3) Analysis Parameters'!E24 -> 0 | E18: ='3) Analysis Parameters'!F24 -> 35.509448 | F18: ='3) Analysis Parameters'!G24 -> 0 | G18: ='3) Analysis Parameters'!H24 -> 160.610424 | H18: ='3) Analysis Parameters'!I24 -> 12.674792 | I18: ='3) Analysis Parameters'!J24 -> 4.239768 | J18: =SUM(C18:I18) -> 361.793536
B20: Calculation of the annual emissions benefit ($ Dollars) (3)
C21: =Lookup!AH8 -> CO2 | D21: =Lookup!AI8 -> CO | E21: =Lookup!AJ8 -> NOx | F21: =Lookup!AK8 -> PM10 | G21: =Lookup!AL8 -> PM2.5 | H21: =Lookup!AM8 -> SO2 | I21: =Lookup!AN8 -> VOC | J21: TOTAL
B22: Fatality (K) | C22: =$C8*C16 -> 0 | D22: 0 | E22: 0 | F22: 0 | G22: 0 | H22: 0 | I22: 0 | J22: =SUM(C22:I22) -> 0
B23: Injury A | C23: =+C$17*$C9 -> 0 | D23: =+D$17*$C9 -> 0 | E23: 0 | F23: 0 | G23: 0 | H23: 0 | I23: =+I17*I9 -> 0 | J23: =SUM(C23:I23) -> 0
B24: Injury B | C24: =+C$17*$C10 -> 0 | D24: 0 | E24: 0 | F24: 0 | G24: 0 | H24: 0 | I24: =+I17*I10 -> 0 | J24: =SUM(C24:I24) -> 0
B25: Injury C | C25: 0 | D25: 0 | E25: 0 | F25: 0 | G25: 0 | H25: 0 | I25: 0 | J25: =SUM(C25:I25) -> 0
B26: PDO (O) | C26: =$C12*C18 -> 0 | D26: 0 | E26: 0 | F26: 0 | G26: 0 | H26: 0 | I26: 0 | J26: =SUM(C26:I26) -> 0
E27: Total Annual Emissions Benefit ($ Dollars) | J27: =SUM(J22:J26) -> 0
B28: Year | C28: Present Value
B29: 1 | C29: =IF(B29<='1) Project Information'!D$14,(1/(1+(IF('1) Project Information'!$E$17>0,'1) Project Information'!$E$17,'1) Project Information'!$D$17)))^B29)*J$25,0) -> 0
B30: 2 | C30: =IF(B30<='1) Project Information'!D$14,(1/(1+(IF('1) Project Information'!$E$17>0,'1) Project Information'!$E$17,'1) Project Information'!$D$17)))^B30)*J$25,0) -> 0
B31: 3 | C31: =IF(B31<='1) Project Information'!D$14,(1/(1+(IF('1) Project Information'!$E$17>0,'1) Project Information'!$E$17,'1) Project Information'!$D$17)))^B31)*J$25,0) -> 0
B32: 4 | C32: =IF(B32<='1) Project Information'!D$14,(1/(1+(IF('1) Project Information'!$E$17>0,'1) Project Information'!$E$17,'1) Project Information'!$D$17)))^B32)*J$25,0) -> 0
B33: 5 | C33: =IF(B33<='1) Project Information'!D$14,(1/(1+(IF('1) Project Information'!$E$17>0,'1) Project Information'!$E$17,'1) Project Information'!$D$17)))^B33)*J$25,0) -> 0
B34: 6 | C34: =IF(B34<='1) Project Information'!D$14,(1/(1+(IF('1) Project Information'!$E$17>0,'1) Project Information'!$E$17,'1) Project Information'!$D$17)))^B34)*J$25,0) -> 0
B35: 7 | C35: =IF(B35<='1) Project Information'!D$14,(1/(1+(IF('1) Project Information'!$E$17>0,'1) Project Information'!$E$17,'1) Project Information'!$D$17)))^B35)*J$25,0) -> 0
B36: 8 | C36: =IF(B36<='1) Project Information'!D$14,(1/(1+(IF('1) Project Information'!$E$17>0,'1) Project Information'!$E$17,'1) Project Information'!$D$17)))^B36)*J$25,0) -> 0
B37: 9 | C37: =IF(B37<='1) Project Information'!D$14,(1/(1+(IF('1) Project Information'!$E$17>0,'1) Project Information'!$E$17,'1) Project Information'!$D$17)))^B37)*J$25,0) -> 0
B38: 10 | C38: =IF(B38<='1) Project Information'!D$14,(1/(1+(IF('1) Project Information'!$E$17>0,'1) Project Information'!$E$17,'1) Project Information'!$D$17)))^B38)*J$25,0) -> 0
B39: 11 | C39: =IF(B39<='1) Project Information'!D$14,(1/(1+(IF('1) Project Information'!$E$17>0,'1) Project Information'!$E$17,'1) Project Information'!$D$17)))^B39)*J$25,0) -> 0
B40: 12 | C40: =IF(B40<='1) Project Information'!D$14,(1/(1+(IF('1) Project Information'!$E$17>0,'1) Project Information'!$E$17,'1) Project Information'!$D$17)))^B40)*J$25,0) -> 0
B41: 13 | C41: =IF(B41<='1) Project Information'!D$14,(1/(1+(IF('1) Project Information'!$E$17>0,'1) Project Information'!$E$17,'1) Project Information'!$D$17)))^B41)*J$25,0) -> 0
B42: 14 | C42: =IF(B42<='1) Project Information'!D$14,(1/(1+(IF('1) Project Information'!$E$17>0,'1) Project Information'!$E$17,'1) Project Information'!$D$17)))^B42)*J$25,0) -> 0
B43: 15 | C43: =IF(B43<='1) Project Information'!D$14,(1/(1+(IF('1) Project Information'!$E$17>0,'1) Project Information'!$E$17,'1) Project Information'!$D$17)))^B43)*J$25,0) -> 0
B44: 16 | C44: =IF(B44<='1) Project Information'!D$14,(1/(1+(IF('1) Project Information'!$E$17>0,'1) Project Information'!$E$17,'1) Project Information'!$D$17)))^B44)*J$25,0) -> 0
B45: 17 | C45: =IF(B45<='1) Project Information'!D$14,(1/(1+(IF('1) Project Information'!$E$17>0,'1) Project Information'!$E$17,'1) Project Information'!$D$17)))^B45)*J$25,0) -> 0
B46: 18 | C46: =IF(B46<='1) Project Information'!D$14,(1/(1+(IF('1) Project Information'!$E$17>0,'1) Project Information'!$E$17,'1) Project Information'!$D$17)))^B46)*J$25,0) -> 0
B47: 19 | C47: =IF(B47<='1) Project Information'!D$14,(1/(1+(IF('1) Project Information'!$E$17>0,'1) Project Information'!$E$17,'1) Project Information'!$D$17)))^B47)*J$25,0) -> 0
B48: 20 | C48: =IF(B48<='1) Project Information'!D$14,(1/(1+(IF('1) Project Information'!$E$17>0,'1) Project Information'!$E$17,'1) Project Information'!$D$17)))^B48)*J$25,0) -> 0
B49: 21 | C49: =IF(B49<='1) Project Information'!D$14,(1/(1+(IF('1) Project Information'!$E$17>0,'1) Project Information'!$E$17,'1) Project Information'!$D$17)))^B49)*J$25,0) -> 0
B50: 22 | C50: =IF(B50<='1) Project Information'!D$14,(1/(1+(IF('1) Project Information'!$E$17>0,'1) Project Information'!$E$17,'1) Project Information'!$D$17)))^B50)*J$25,0) -> 0
B51: 23 | C51: =IF(B51<='1) Project Information'!D$14,(1/(1+(IF('1) Project Information'!$E$17>0,'1) Project Information'!$E$17,'1) Project Information'!$D$17)))^B51)*J$25,0) -> 0
B52: 24 | C52: =IF(B52<='1) Project Information'!D$14,(1/(1+(IF('1) Project Information'!$E$17>0,'1) Project Information'!$E$17,'1) Project Information'!$D$17)))^B52)*J$25,0) -> 0
B53: 25 | C53: =IF(B53<='1) Project Information'!D$14,(1/(1+(IF('1) Project Information'!$E$17>0,'1) Project Information'!$E$17,'1) Project Information'!$D$17)))^B53)*J$25,0) -> 0
B54: 26 | C54: =IF(B54<='1) Project Information'!D$14,(1/(1+(IF('1) Project Information'!$E$17>0,'1) Project Information'!$E$17,'1) Project Information'!$D$17)))^B54)*J$25,0) -> 0
B55: 27 | C55: =IF(B55<='1) Project Information'!D$14,(1/(1+(IF('1) Project Information'!$E$17>0,'1) Project Information'!$E$17,'1) Project Information'!$D$17)))^B55)*J$25,0) -> 0
B56: 28 | C56: =IF(B56<='1) Project Information'!D$14,(1/(1+(IF('1) Project Information'!$E$17>0,'1) Project Information'!$E$17,'1) Project Information'!$D$17)))^B56)*J$25,0) -> 0
B57: 29 | C57: =IF(B57<='1) Project Information'!D$14,(1/(1+(IF('1) Project Information'!$E$17>0,'1) Project Information'!$E$17,'1) Project Information'!$D$17)))^B57)*J$25,0) -> 0
B58: 30 | C58: =IF(B58<='1) Project Information'!D$14,(1/(1+(IF('1) Project Information'!$E$17>0,'1) Project Information'!$E$17,'1) Project Information'!$D$17)))^B58)*J$25,0) -> 0
B59: 31 | C59: =IF(B59<='1) Project Information'!D$14,(1/(1+(IF('1) Project Information'!$E$17>0,'1) Project Information'!$E$17,'1) Project Information'!$D$17)))^B59)*J$25,0) -> 0
B60: 32 | C60: =IF(B60<='1) Project Information'!D$14,(1/(1+(IF('1) Project Information'!$E$17>0,'1) Project Information'!$E$17,'1) Project Information'!$D$17)))^B60)*J$25,0) -> 0
B61: 33 | C61: =IF(B61<='1) Project Information'!D$14,(1/(1+(IF('1) Project Information'!$E$17>0,'1) Project Information'!$E$17,'1) Project Information'!$D$17)))^B61)*J$25,0) -> 0
B62: 34 | C62: =IF(B62<='1) Project Information'!D$14,(1/(1+(IF('1) Project Information'!$E$17>0,'1) Project Information'!$E$17,'1) Project Information'!$D$17)))^B62)*J$25,0) -> 0
B63: 35 | C63: =IF(B63<='1) Project Information'!D$14,(1/(1+(IF('1) Project Information'!$E$17>0,'1) Project Information'!$E$17,'1) Project Information'!$D$17)))^B63)*J$25,0) -> 0
B64: 36 | C64: =IF(B64<='1) Project Information'!D$14,(1/(1+(IF('1) Project Information'!$E$17>0,'1) Project Information'!$E$17,'1) Project Information'!$D$17)))^B64)*J$25,0) -> 0
B65: 37 | C65: =IF(B65<='1) Project Information'!D$14,(1/(1+(IF('1) Project Information'!$E$17>0,'1) Project Information'!$E$17,'1) Project Information'!$D$17)))^B65)*J$25,0) -> 0
B66: 38 | C66: =IF(B66<='1) Project Information'!D$14,(1/(1+(IF('1) Project Information'!$E$17>0,'1) Project Information'!$E$17,'1) Project Information'!$D$17)))^B66)*J$25,0) -> 0
B67: 39 | C67: =IF(B67<='1) Project Information'!D$14,(1/(1+(IF('1) Project Information'!$E$17>0,'1) Project Information'!$E$17,'1) Project Information'!$D$17)))^B67)*J$25,0) -> 0
B68: 40 | C68: =IF(B68<='1) Project Information'!D$14,(1/(1+(IF('1) Project Information'!$E$17>0,'1) Project Information'!$E$17,'1) Project Information'!$D$17)))^B68)*J$25,0) -> 0
B69: 41 | C69: =IF(B69<='1) Project Information'!D$14,(1/(1+(IF('1) Project Information'!$E$17>0,'1) Project Information'!$E$17,'1) Project Information'!$D$17)))^B69)*J$25,0) -> 0
B70: 42 | C70: =IF(B70<='1) Project Information'!D$14,(1/(1+(IF('1) Project Information'!$E$17>0,'1) Project Information'!$E$17,'1) Project Information'!$D$17)))^B70)*J$25,0) -> 0
B71: 43 | C71: =IF(B71<='1) Project Information'!D$14,(1/(1+(IF('1) Project Information'!$E$17>0,'1) Project Information'!$E$17,'1) Project Information'!$D$17)))^B71)*J$25,0) -> 0
B72: 44 | C72: =IF(B72<='1) Project Information'!D$14,(1/(1+(IF('1) Project Information'!$E$17>0,'1) Project Information'!$E$17,'1) Project Information'!$D$17)))^B72)*J$25,0) -> 0
B73: 45 | C73: =IF(B73<='1) Project Information'!D$14,(1/(1+(IF('1) Project Information'!$E$17>0,'1) Project Information'!$E$17,'1) Project Information'!$D$17)))^B73)*J$25,0) -> 0
B74: 46 | C74: =IF(B74<='1) Project Information'!D$14,(1/(1+(IF('1) Project Information'!$E$17>0,'1) Project Information'!$E$17,'1) Project Information'!$D$17)))^B74)*J$25,0) -> 0
B75: 47 | C75: =IF(B75<='1) Project Information'!D$14,(1/(1+(IF('1) Project Information'!$E$17>0,'1) Project Information'!$E$17,'1) Project Information'!$D$17)))^B75)*J$25,0) -> 0
B76: 48 | C76: =IF(B76<='1) Project Information'!D$14,(1/(1+(IF('1) Project Information'!$E$17>0,'1) Project Information'!$E$17,'1) Project Information'!$D$17)))^B76)*J$25,0) -> 0
B77: 49 | C77: =IF(B77<='1) Project Information'!D$14,(1/(1+(IF('1) Project Information'!$E$17>0,'1) Project Information'!$E$17,'1) Project Information'!$D$17)))^B77)*J$25,0) -> 0
B78: 50 | C78: =IF(B78<='1) Project Information'!D$14,(1/(1+(IF('1) Project Information'!$E$17>0,'1) Project Information'!$E$17,'1) Project Information'!$D$17)))^B78)*J$25,0) -> 0
C79: =SUM(C29:C78) -> 0

Sheet Lookup
A1: LOOKUP TABLES
A2: The lookup tables on this worksheet are used to populate the Analysis Parameters worksheet.
B5: FMCSA VALUE OF TIME ($2017 Dollars) | R5: NHTSA TRAVEL TIME DELAY FACTORS | AA5: NHTSA VEHICLE OPERATING COSTS | AG5: NHTSA EMIISSIONS FACTORS ($ 2017 Dollars)
C6: Inflation Factor 2010-2017 | D6: 1.1128
K7: Severity | L7: Comprehensive Crash Unit Cost | S7: Urban Interstates/ Expressways | T7: Urban Arterials | U7: Urban Other | V7: Rural Interstate/ Principal Arterials | W7: Rural Other | AA7: Net Increase in and Cost of Fuel Consumption, Fatal Crashes | AG7: Estimated Value of Net Emissions/Crash by Facility Type, All Fatal Crashes ($ 2017 Dollars)
C8: Road Type | D8: Average VOT | E8: VOT for Passenger Vehicles | F8: VOT all Trucks | G8: Percentage Trucks | H8: Percentage Cars | K8: K | L8: 11637947 | AA8: Facility Type | AC8: Gallons/fuel | AG8: Facility Type | AH8: CO2 | AI8: CO | AJ8: NOx | AK8: PM10 | AL8: PM2.5 | AM8: SO2 | AN8: VOC
C9: Urban Interstate/Expressway | D9: =E9*H9+F9*G9 -> 27.01466664 | E9: =L57 -> 26.006136 | F9: =((30.48*0.375+37.23*0.625)*$D$6) -> 38.612769 | G9: 0.08 | H9: =1-G9 -> 0.92 | K9: A | L9: 674353 | AA9: Urban Interstate/Expressway | AC9: 1951 | AG9: Urban Interstate/Expressway | AH9: 827.900944 | AI9: 0 | AJ9: 197.588768 | AK9: 0 | AL9: 895.5258 | AM9: 70.785208 | AN9: 23.613616
C10: Urban Arterial | D10: =E10*H10+F10*G10 -> 26.60393216 | E10: =L58 -> 26.061776 | F10: =((30.44*0.6+37.25*0.4)*$D$6) -> 36.9048992 | G10: 0.05 | H10: =1-G10 -> 0.95 | K10: B | L10: 204143 | R10: Fatal Crashes | AA10: Urban Arterial | AC10: 504 | AG10: Urban Arterial | AH10: 213.6576 | AI10: 0 | AJ10: 50.265176 | AK10: 0 | AL10: 133.825328 | AM10: 18.094128 | AN10: 3.994952
C11: Urban Other | D11: 26.58078592 | E11: =L59 -> 26.195312 | F11: =((30.5*0.75+37.3*0.25)*$D$6) -> 35.83216 | G11: 0.04 | H11: 0.96 | K11: C | L11: 129001 | R11: Total Vehicle Hours, All Crashes | S11: 5147.7 | T11: 1258.26 | U11: 207.88 | V11: 1780.31 | W11: 104.82 | AA11: Urban Other | AC11: 39 | AG11: Urban Other | AH11: 16.369288 | AI11: 0 | AJ11: 3.95044 | AK11: 0 | AL11: 8.924656 | AM11: 1.413256 | AN11: 0.267072
C12: Rural Interstate/Principal Arterial | D12: 28.98131808 | E12: =L60 -> 26.250952 | F12: =((30.33*0.2+37.24*0.8)*$D$6) -> 39.9027824 | G12: 0.2 | H12: 0.8 | K12: O | L12: 12108 | R12: Total Vehicle Hours, Truck Crashes | S12: 8590.02 | T12: 2094.75 | U12: 1400.59 | V12: 3294.58 | W12: 617.33 | AA12: Rural Interstate/Principal Arterials | AC12: 294 | AG12: Rural Interstate/Principal Arterials | AH12: 124.600216 | AI12: 0 | AJ12: 59.723976 | AK12: 0 | AL12: 178.648912 | AM12: 10.382424 | AN12: 2.437032
C13: Rural Other | D13: 27.56594776 | E13: =L61 -> 26.584792 | F13: =((30.82*(5/9)+37.27*(4/9))*$D$6) -> 37.48652267 | G13: 0.09 | H13: 0.91 | R13: Ratio, All/Truck | S13: 0.6 | T13: 0.6 | U13: 0.15 | V13: 0.54 | W13: 0.17 | AA13: Rural Other | AC13: 36 | AG13: Rural Other | AH13: 15.46792 | AI13: 0 | AJ13: 6.276192 | AK13: 0 | AL13: 17.537728 | AM13: 1.27972 | AN13: 0.2782
R14: FMCSA Truck Vehicle Hours | S14: 6729 | T14: 483 | U14: 291 | V14: 464 | W14: 99 | AA14: Average All Roadway Types | AC14: 376 | AG14: Average for All Road Types | AH14: 159.475368 | AI14: 0 | AJ14: 44.356208 | AK14: 0 | AL14: 159.174912 | AM14: 13.531648 | AN14: 3.816904
B15: Source: National Highway Traffic Safety Administration, The Economic and Societal Impact Of Motor Vehicle Crashes, 2010, https://crashstats.nhtsa.dot.gov/Api/Public/ViewPublication/812013. (Revised), 2015 Accessed at: https://crashstats.nhtsa.dot.gov/Api/Public/ViewPublication/812013. Table 3-36. Average Value of Travel per Hour by Road Type (2010 Dollars) | R15: All Crashes Vehicle Hours | S15: 4032.45 | T15: 290.13 | U15: 43.19 | V15: 250.73 | W15: 16.81
R16: Injury Crashes | AA16: Net Increase in and Cost of Fuel Consumption, Injury Crashes | AG16: Estimated Value of Net Emissions/Crash by Facility Type, All Injury Crashes ($ 2017 Dollars)
R17: Total Vehicle Hours, All Crashes | S17: 345.29 | T17: 68.56 | U17: 15.4 | V17: 207.68 | W17: 13.86 | AA17: Facility Type | AC17: Gallons/fuel | AG17: Facility Type | AH17: CO2 | AI17: CO | AJ17: NOx | AK17: PM10 | AL17: PM2.5 | AM17: SO2 | AN17: VOC
R18: Total Vehicle Hours, Truck Crashes | S18: 1022.25 | T18: 145.66 | U18: 87.83 | V18: 711.47 | W18: 108.99 | AA18: Urban Interstate/Expressway | AC18: 412 | AG18: Urban Interstate/Expressway | AH18: 174.909904 | AI18: 0 | AJ18: 41.741128 | AK18: 0 | AL18: 189.153744 | AM18: 14.978288 | AN18: 4.985344
R19: Ratio, All/Truck | S19: 0.34 | T19: 0.47 | U19: 0.18 | V19: 0.29 | W19: 0.13 | AA19: Urban Arterial | AC19: 112 | AG19: Urban Arterial | AH19: 47.383024 | AI19: 0 | AJ19: 11.139128 | AK19: 0 | AL19: 29.15536 | AM19: 4.017208 | AN19: 0.879112
R20: FMCSA Truck Vehicle Hours | S20: 2522 | T20: 137 | U20: 108 | V20: 159 | W20: 34 | AA20: Urban Other | AC20: 17 | AG20: Urban Other | AH20: 7.17756 | AI20: 0 | AJ20: 1.72484 | AK20: 0 | AL20: 3.761264 | AM20: 0.623168 | AN20: 0.122408
R21: All Crashes Vehicle Hours | S21: 851.85 | T21: 64.48 | U21: 18.94 | V21: 46.41 | W21: 4.32 | AA21: Rural Interstate/Principal Arterials | AC21: 54 | AG21: Rural Interstate/Principal Arterials | AH21: 22.97932 | AI21: 0 | AJ21: 11.01672 | AK21: 0 | AL21: 33.05016 | AM21: 1.936272 | AN21: 0.44512
R22: PDO Crashes | AA22: Rural Other | AC22: 9 | AG22: Rural Other | AH22: 3.928184 | AI22: 0 | AJ22: 1.591304 | AK22: 0 | AL22: 4.384432 | AM22: 0.322712 | AN22: 0.066768
R23: Total Vehicle Hours, All Crashes | S23: 215 | T23: 49.94 | U23: 10.32 | V23: 146.25 | W23: 10.33 | AA23: Average All Roadway Types | AC23: 81 | AG23: Average for All Road Types | AH23: 34.285368 | AI23: 0 | AJ23: 9.40316 | AK23: 0 | AL23: 33.450768 | AM23: 2.915536 | AN23: 0.812344
R24: Total Vehicle Hours, Truck Crashes | S24: 636.06 | T24: 139.4 | U24: 82.49 | V24: 415.83 | W24: 81.13
R25: Ratio, All/Truck | S25: 0.34 | T25: 0.36 | U25: 0.13 | V25: 0.35 | W25: 0.13 | AA25: Net Increase in and Cost of Fuel Consumption, PDO Crashes | AG25: Estimated Value of Net Emissions/Crash by Facility Type, All PDO Crashes ($ 2017 Dollars)
R26: FMCSA Truck Vehicle Hours | S26: 2144 | T26: 109 | U26: 91 | V26: 134 | W26: 28 | AA26: Facility Type | AC26: Gallons/fuel | AG26: Facility Type | AH26: CO2 | AI26: CO | AJ26: NOx | AK26: PM10 | AL26: PM2.5 | AM26: SO2 | AN26: VOC
R27: All Crashes Vehicle Hours | S27: 724.71 | T27: 39.05 | U27: 11.38 | V27: 47.13 | W27: 3.57 | AA27: Urban Interstate/Expressway | AC27: 351 | AG27: Urban Interstate/Expressway | AH27: 148.759104 | AI27: 0 | AJ27: 35.509448 | AK27: 0 | AL27: 160.610424 | AM27: 12.674792 | AN27: 4.239768
AA28: Urban Arterial | AC28: 68 | AG28: Urban Arterial | AH28: 28.71024 | AI28: 0 | AJ28: 6.754696 | AK28: 0 | AL28: 18.338944 | AM28: 2.414776 | AN28: 0.534144
R29: Source: National Highway Traffic Safety Administration, The Economic and Societal Impact Of Motor Vehicle Crashes, 2010, Accessed at: https://crashstats.nhtsa.dot.gov/Api/Public/ViewPublication/812013. Table 3-21. Vehicle Delay Hours by Crash Severity and Roadway Type, Average for All Crashes | AA29: Urban Other | AC29: 10 | AG29: Urban Other | AH29: 4.328792 | AI29: 0 | AJ29: 1.046032 | AK29: 0 | AL29: 2.247856 | AM29: 0.356096 | AN29: 0.077896
B30: Hagemann, G., Hymel, K., Klauber, A., Lee, D. B., Noel, G., Pace, D., & Taylor, C. (2013, March). Delay and Environmental Costs of Truck Crashes. (Report No. FMCSA-RRA-13-043). Washington, DC: Federal Motor Carrier Safety Administration. Available at https://www.google.com/url?sa=t&rct=j&q=&esrc=s&source=web&cd=1&ved=0ahUKEwiVh8rYsqbZAhWMNd8KHTr0AZoQFggpMAA&url=http%3A%2F%2Frosap.ntl.bts.gov%2Fview%2Fdot%2F10074%2Fdot_10074_DS1.pdf%3F&usg=AOvVaw1f9wcoEpIow-XxSEsxKz64 | AA30: Rural Interstate/Principal Arterials | AC30: 55 | AG30: Rural Interstate/Principal Arterials | AH30: 23.379928 | AI30: 0 | AJ30: 11.205896 | AK30: 0 | AL30: 33.384 | AM30: 1.914016 | AN30: 0.456248
AA31: Rural Other | AC31: 8 | AG31: Rural Other | AH31: 3.28276 | AI31: 0 | AJ31: 1.33536 | AK31: 0 | AL31: 3.594344 | AM31: 0.2782 | AN31: 0.05564
AA32: Average All Roadway Types | AC32: 64 | AG32: Average for All Road Types | AH32: 27.163448 | AI32: 0 | AJ32: 7.700576 | AK32: 0 | AL32: 27.853384 | AM32: 2.292368 | AN32: 0.656552
AA34: Source: National Highway Traffic Safety Administration, The Economic and Societal Impact Of Motor Vehicle Crashes, 2010, Accessed at: https://crashstats.nhtsa.dot.gov/Api/Public/ViewPublication/812013 | AG34: Source: National Highway Traffic Safety Administration, The Economic and Societal Impact Of Motor Vehicle Crashes, 2010, Accessed at: https://crashstats.nhtsa.dot.gov/Api/Public/ViewPublication/812013
R36: Single Countermeasure | AG36: Note: NHTSA does not estimate CO or PM10 emissions reducyions per crach. CO reduction benefits are included in the VOC benefits.
R37: Multiple Countermeasures
R39: Zero Overlap in Countermeasure Effect
R40: Some Overlapping Countermeasure Effects
R41: Complete Overlap in Countermeasure Effects
R42: Enhancing Countermeasure Effects
R43: Counteracting Countermeasure Effects
R45: Small
R46: Medium
R47: Large
R49: Case A
R50: Case B
R51: Case C
R52: Case D
R53: Case E
R54: Not applicable
D56: =IF(H12="Urban Interstate/Expressway",Lookup!S23,IF(H12="Urban Arterial",Lookup!T23,IF(H12="Urban Other",Lookup!U13,IF(H14="Rural Interstate/Principal Arterial",Lookup!V13,IF(H14="Rural Other",Lookup!W13,0))))) -> 0 | K56: Passenger VOT 2010 | L56: Passenger VOT 2017 | R56: Case A/Case D
K57: 23.37 | L57: =K57*$D$6 -> 26.006136 | R57: Case B/Case E
K58: 23.42 | L58: =K58*$D$6 -> 26.061776 | R58: Case C
D59: =IF(H12="Urban Interstate/Expressway",Lookup!AB9,IF(H12="Urban Arterial",Lookup!AB10,IF(H12="Urban Other",IF(H12="Rural Interstate/Principal Arterial",Lookup!V15,IF(H12="Rural Other",Lookup!W15,0))))) -> FALSE | K59: 23.54 | L59: 26.195312 | R59: Not Applicable
K60: 23.59 | L60: 26.250952 | R60: Not Applicable
K61: 23.89 | L61: 26.584792 | R61: Dominant Effect
R62: Additive Method
R63: Multiplicative Method
R64: Dominant Common Residuals Method

Sheet Final Calculations
B1: FINAL CALCULATIONS
B2: This sheet performs the final calculations before presenting the summary results. | N2: Color Codes
N3: Model Parameter | O3: 0
B4: Formula 1: Present Value of Costs and Benefits | E4: = Future Value (in Constant Dollars) / ( 1 + Real Discount Rate) ^ Year | N4: Model Calculation | O4: ='2) Project Crash Data'!L32 -> 0
N5: Linked Cell | O5: ='2) Project Crash Data'!J37 -> 0
C7: PRESENT VALUE OF USER BENEFITS | H7: Present | I7: Present
H8: Value | I8: Value
C9: Travel | D9: Vehicle | F9: Vehicle | H9: of Total | I9: of Total | J9: NET
B10: Year | C10: Time | D10: VOC | E10: Crash | F10: Emission | G10: Reliability | H10: User | I10: Project | J10: PRESENT
C11: Savings | D11: Savings | E11: Reductions | F11: Reductions | G11: Benefits | H11: Benefits | I11: Costs | J11: VALUE
B12: Construction Period
B13: 1 | H13: =SUM(C13:G13) -> 0 | I13: ='1) Project Information'!I43 -> 0 | J13: =H13-I13 -> 0
B14: 2 | H14: =SUM(C14:G14) -> 0 | I14: ='1) Project Information'!I44 -> 0 | J14: =H14-I14 -> 0
B15: 3 | H15: 0 | I15: ='1) Project Information'!I45 -> 0 | J15: 0
B16: 4 | H16: 0 | I16: ='1) Project Information'!I46 -> 0 | J16: 0
B17: 5 | H17: 0 | I17: ='1) Project Information'!I47 -> 0 | J17: 0
B18: 6 | H18: 0 | I18: ='1) Project Information'!I48 -> 0 | J18: 0
B19: 7 | H19: 0 | I19: ='1) Project Information'!I49 -> 0 | J19: 0
B20: 8 | H20: 0 | I20: ='1) Project Information'!I50 -> 0 | J20: 0
B21: Project Open
B22: 1 | C22: =IF(B22<='1) Project Information'!D$14,(1/(1+'1) Project Information'!D$17)^(B22+'1) Project Information'!$D$15))*'Travel Time Benefits'!E$20,0) -> 0 | D22: =IF(B22<='1) Project Information'!D$14,(1/(1+'1) Project Information'!D$17)^(B22+'1) Project Information'!$D$15))*('Vehicle Operation Benefits'!E$18),0) -> 0 | E22: =IF(B22<='1) Project Information'!D$14,(1/(1+'1) Project Information'!D$17)^(B22+'1) Project Information'!$D$15))*'Crash Benefits'!E$67,0) -> 0 | F22: =IF(B22<='1) Project Information'!D$14,(1/(1+'1) Project Information'!D$17)^(B22+'1) Project Information'!$D$15))*'Emission Benefits'!J$25,0) -> 0 | G22: ='Reliability Benefits'!C33 ->  | H22: =SUM(C22:G22) ->  | I22: ='1) Project Information'!I52 -> 0 | J22: =H22-I22 -> 
B23: 2 | C23: =IF(B23<='1) Project Information'!D$14,(1/(1+'1) Project Information'!D$17)^(B23+'1) Project Information'!$D$15))*'Travel Time Benefits'!E$20,0) -> 0 | D23: =IF(B23<='1) Project Information'!D$14,(1/(1+'1) Project Information'!D$17)^(B23+'1) Project Information'!$D$15))*('Vehicle Operation Benefits'!E$18),0) -> 0 | E23: =IF(B23<='1) Project Information'!D$14,(1/(1+'1) Project Information'!D$17)^(B23+'1) Project Information'!$D$15))*'Crash Benefits'!E$67,0) -> 0 | F23: =IF(B23<='1) Project Information'!D$14,(1/(1+'1) Project Information'!D$17)^(B23+'1) Project Information'!$D$15))*'Emission Benefits'!J$25,0) -> 0 | G23: =IF(B23<='1) Project Information'!$D$14,(1/(1+(IF('1) Project Information'!$E$17>0,'1) Project Information'!$E$17,'1) Project Information'!$D$17)))^B23)*'Reliability Benefits'!$C$33,0) ->  | H23: =SUM(C23:G23) ->  | I23: ='1) Project Information'!I53 -> 0 | J23: =H23-I23 -> 
B24: 3 | C24: =IF(B24<='1) Project Information'!D$14,(1/(1+'1) Project Information'!D$17)^(B24+'1) Project Information'!$D$15))*'Travel Time Benefits'!E$20,0) -> 0 | D24: =IF(B24<='1) Project Information'!D$14,(1/(1+'1) Project Information'!D$17)^(B24+'1) Project Information'!$D$15))*('Vehicle Operation Benefits'!E$18),0) -> 0 | E24: =IF(B24<='1) Project Information'!D$14,(1/(1+'1) Project Information'!D$17)^(B24+'1) Project Information'!$D$15))*'Crash Benefits'!E$67,0) -> 0 | F24: =IF(B24<='1) Project Information'!D$14,(1/(1+'1) Project Information'!D$17)^(B24+'1) Project Information'!$D$15))*'Emission Benefits'!J$25,0) -> 0 | G24: =IF(B24<='1) Project Information'!$D$14,(1/(1+(IF('1) Project Information'!$E$17>0,'1) Project Information'!$E$17,'1) Project Information'!$D$17)))^B24)*'Reliability Benefits'!$C$33,0) ->  | I24: ='1) Project Information'!I54 -> 0
B25: 4 | C25: =IF(B25<='1) Project Information'!D$14,(1/(1+'1) Project Information'!D$17)^(B25+'1) Project Information'!$D$15))*'Travel Time Benefits'!E$20,0) -> 0 | D25: =IF(B25<='1) Project Information'!D$14,(1/(1+'1) Project Information'!D$17)^(B25+'1) Project Information'!$D$15))*('Vehicle Operation Benefits'!E$18),0) -> 0 | E25: =IF(B25<='1) Project Information'!D$14,(1/(1+'1) Project Information'!D$17)^(B25+'1) Project Information'!$D$15))*'Crash Benefits'!E$67,0) -> 0 | F25: =IF(B25<='1) Project Information'!D$14,(1/(1+'1) Project Information'!D$17)^(B25+'1) Project Information'!$D$15))*'Emission Benefits'!J$25,0) -> 0 | G25: =IF(B25<='1) Project Information'!$D$14,(1/(1+(IF('1) Project Information'!$E$17>0,'1) Project Information'!$E$17,'1) Project Information'!$D$17)))^B25)*'Reliability Benefits'!$C$33,0) ->  | I25: ='1) Project Information'!I55 -> 0
B26: 5 | C26: =IF(B26<='1) Project Information'!D$14,(1/(1+'1) Project Information'!D$17)^(B26+'1) Project Information'!$D$15))*'Travel Time Benefits'!E$20,0) -> 0 | D26: =IF(B26<='1) Project Information'!D$14,(1/(1+'1) Project Information'!D$17)^(B26+'1) Project Information'!$D$15))*('Vehicle Operation Benefits'!E$18),0) -> 0 | E26: =IF(B26<='1) Project Information'!D$14,(1/(1+'1) Project Information'!D$17)^(B26+'1) Project Information'!$D$15))*'Crash Benefits'!E$67,0) -> 0 | F26: =IF(B26<='1) Project Information'!D$14,(1/(1+'1) Project Information'!D$17)^(B26+'1) Project Information'!$D$15))*'Emission Benefits'!J$25,0) -> 0 | G26: =IF(B26<='1) Project Information'!$D$14,(1/(1+(IF('1) Project Information'!$E$17>0,'1) Project Information'!$E$17,'1) Project Information'!$D$17)))^B26)*'Reliability Benefits'!$C$33,0) ->  | I26: ='1) Project Information'!I56 -> 0
B27: 6 | C27: =IF(B27<='1) Project Information'!D$14,(1/(1+'1) Project Information'!D$17)^(B27+'1) Project Information'!$D$15))*'Travel Time Benefits'!E$20,0) -> 0 | D27: =IF(B27<='1) Project Information'!D$14,(1/(1+'1) Project Information'!D$17)^(B27+'1) Project Information'!$D$15))*('Vehicle Operation Benefits'!E$18),0) -> 0 | E27: =IF(B27<='1) Project Information'!D$14,(1/(1+'1) Project Information'!D$17)^(B27+'1) Project Information'!$D$15))*'Crash Benefits'!E$67,0) -> 0 | F27: =IF(B27<='1) Project Information'!D$14,(1/(1+'1) Project Information'!D$17)^(B27+'1) Project Information'!$D$15))*'Emission Benefits'!J$25,0) -> 0 | G27: =IF(B27<='1) Project Information'!$D$14,(1/(1+(IF('1) Project Information'!$E$17>0,'1) Project Information'!$E$17,'1) Project Information'!$D$17)))^B27)*'Reliability Benefits'!$C$33,0) ->  | I27: ='1) Project Information'!I57 -> 0
B28: 7 | C28: =IF(B28<='1) Project Information'!D$14,(1/(1+'1) Project Information'!D$17)^(B28+'1) Project Information'!$D$15))*'Travel Time Benefits'!E$20,0) -> 0 | D28: =IF(B28<='1) Project Information'!D$14,(1/(1+'1) Project Information'!D$17)^(B28+'1) Project Information'!$D$15))*('Vehicle Operation Benefits'!E$18),0) -> 0 | E28: =IF(B28<='1) Project Information'!D$14,(1/(1+'1) Project Information'!D$17)^(B28+'1) Project Information'!$D$15))*'Crash Benefits'!E$67,0) -> 0 | F28: =IF(B28<='1) Project Information'!D$14,(1/(1+'1) Project Information'!D$17)^(B28+'1) Project Information'!$D$15))*'Emission Benefits'!J$25,0) -> 0 | G28: =IF(B28<='1) Project Information'!$D$14,(1/(1+(IF('1) Project Information'!$E$17>0,'1) Project Information'!$E$17,'1) Project Information'!$D$17)))^B28)*'Reliability Benefits'!$C$33,0) ->  | I28: ='1) Project Information'!I58 -> 0
B29: 8 | C29: =IF(B29<='1) Project Information'!D$14,(1/(1+'1) Project Information'!D$17)^(B29+'1) Project Information'!$D$15))*'Travel Time Benefits'!E$20,0) -> 0 | D29: =IF(B29<='1) Project Information'!D$14,(1/(1+'1) Project Information'!D$17)^(B29+'1) Project Information'!$D$15))*('Vehicle Operation Benefits'!E$18),0) -> 0 | E29: =IF(B29<='1) Project Information'!D$14,(1/(1+'1) Project Information'!D$17)^(B29+'1) Project Information'!$D$15))*'Crash Benefits'!E$67,0) -> 0 | F29: =IF(B29<='1) Project Information'!D$14,(1/(1+'1) Project Information'!D$17)^(B29+'1) Project Information'!$D$15))*'Emission Benefits'!J$25,0) -> 0 | G29: =IF(B29<='1) Project Information'!$D$14,(1/(1+(IF('1) Project Information'!$E$17>0,'1) Project Information'!$E$17,'1) Project Information'!$D$17)))^B29)*'Reliability Benefits'!$C$33,0) ->  | I29: ='1) Project Information'!I59 -> 0
B30: 9 | C30: =IF(B30<='1) Project Information'!D$14,(1/(1+'1) Project Information'!D$17)^(B30+'1) Project Information'!$D$15))*'Travel Time Benefits'!E$20,0) -> 0 | D30: =IF(B30<='1) Project Information'!D$14,(1/(1+'1) Project Information'!D$17)^(B30+'1) Project Information'!$D$15))*('Vehicle Operation Benefits'!E$18),0) -> 0 | E30: =IF(B30<='1) Project Information'!D$14,(1/(1+'1) Project Information'!D$17)^(B30+'1) Project Information'!$D$15))*'Crash Benefits'!E$67,0) -> 0 | F30: =IF(B30<='1) Project Information'!D$14,(1/(1+'1) Project Information'!D$17)^(B30+'1) Project Information'!$D$15))*'Emission Benefits'!J$25,0) -> 0 | G30: =IF(B30<='1) Project Information'!$D$14,(1/(1+(IF('1) Project Information'!$E$17>0,'1) Project Information'!$E$17,'1) Project Information'!$D$17)))^B30)*'Reliability Benefits'!$C$33,0) ->  | I30: ='1) Project Information'!I60 -> 0
B31: 10 | C31: =IF(B31<='1) Project Information'!D$14,(1/(1+'1) Project Information'!D$17)^(B31+'1) Project Information'!$D$15))*'Travel Time Benefits'!E$20,0) -> 0 | D31: =IF(B31<='1) Project Information'!D$14,(1/(1+'1) Project Information'!D$17)^(B31+'1) Project Information'!$D$15))*('Vehicle Operation Benefits'!E$18),0) -> 0 | E31: =IF(B31<='1) Project Information'!D$14,(1/(1+'1) Project Information'!D$17)^(B31+'1) Project Information'!$D$15))*'Crash Benefits'!E$67,0) -> 0 | F31: =IF(B31<='1) Project Information'!D$14,(1/(1+'1) Project Information'!D$17)^(B31+'1) Project Information'!$D$15))*'Emission Benefits'!J$25,0) -> 0 | G31: =IF(B31<='1) Project Information'!$D$14,(1/(1+(IF('1) Project Information'!$E$17>0,'1) Project Information'!$E$17,'1) Project Information'!$D$17)))^B31)*'Reliability Benefits'!$C$33,0) ->  | I31: ='1) Project Information'!I61 -> 0
B32: 11 | C32: =IF(B32<='1) Project Information'!D$14,(1/(1+'1) Project Information'!D$17)^(B32+'1) Project Information'!$D$15))*'Travel Time Benefits'!E$20,0) -> 0 | D32: =IF(B32<='1) Project Information'!D$14,(1/(1+'1) Project Information'!D$17)^(B32+'1) Project Information'!$D$15))*('Vehicle Operation Benefits'!E$18),0) -> 0 | E32: =IF(B32<='1) Project Information'!D$14,(1/(1+'1) Project Information'!D$17)^(B32+'1) Project Information'!$D$15))*'Crash Benefits'!E$67,0) -> 0 | F32: =IF(B32<='1) Project Information'!D$14,(1/(1+'1) Project Information'!D$17)^(B32+'1) Project Information'!$D$15))*'Emission Benefits'!J$25,0) -> 0 | G32: =IF(B32<='1) Project Information'!$D$14,(1/(1+(IF('1) Project Information'!$E$17>0,'1) Project Information'!$E$17,'1) Project Information'!$D$17)))^B32)*'Reliability Benefits'!$C$33,0) ->  | I32: ='1) Project Information'!I62 -> 0
B33: 12 | C33: =IF(B33<='1) Project Information'!D$14,(1/(1+'1) Project Information'!D$17)^(B33+'1) Project Information'!$D$15))*'Travel Time Benefits'!E$20,0) -> 0 | D33: =IF(B33<='1) Project Information'!D$14,(1/(1+'1) Project Information'!D$17)^(B33+'1) Project Information'!$D$15))*('Vehicle Operation Benefits'!E$18),0) -> 0 | E33: =IF(B33<='1) Project Information'!D$14,(1/(1+'1) Project Information'!D$17)^(B33+'1) Project Information'!$D$15))*'Crash Benefits'!E$67,0) -> 0 | F33: =IF(B33<='1) Project Information'!D$14,(1/(1+'1) Project Information'!D$17)^(B33+'1) Project Information'!$D$15))*'Emission Benefits'!J$25,0) -> 0 | G33: =IF(B33<='1) Project Information'!$D$14,(1/(1+(IF('1) Project Information'!$E$17>0,'1) Project Information'!$E$17,'1) Project Information'!$D$17)))^B33)*'Reliability Benefits'!$C$33,0) ->  | I33: ='1) Project Information'!I63 -> 0
B34: 13 | C34: =IF(B34<='1) Project Information'!D$14,(1/(1+'1) Project Information'!D$17)^(B34+'1) Project Information'!$D$15))*'Travel Time Benefits'!E$20,0) -> 0 | D34: =IF(B34<='1) Project Information'!D$14,(1/(1+'1) Project Information'!D$17)^(B34+'1) Project Information'!$D$15))*('Vehicle Operation Benefits'!E$18),0) -> 0 | E34: =IF(B34<='1) Project Information'!D$14,(1/(1+'1) Project Information'!D$17)^(B34+'1) Project Information'!$D$15))*'Crash Benefits'!E$67,0) -> 0 | F34: =IF(B34<='1) Project Information'!D$14,(1/(1+'1) Project Information'!D$17)^(B34+'1) Project Information'!$D$15))*'Emission Benefits'!J$25,0) -> 0 | G34: =IF(B34<='1) Project Information'!$D$14,(1/(1+(IF('1) Project Information'!$E$17>0,'1) Project Information'!$E$17,'1) Project Information'!$D$17)))^B34)*'Reliability Benefits'!$C$33,0) ->  | I34: ='1) Project Information'!I64 -> 0
B35: 14 | C35: =IF(B35<='1) Project Information'!D$14,(1/(1+'1) Project Information'!D$17)^(B35+'1) Project Information'!$D$15))*'Travel Time Benefits'!E$20,0) -> 0 | D35: =IF(B35<='1) Project Information'!D$14,(1/(1+'1) Project Information'!D$17)^(B35+'1) Project Information'!$D$15))*('Vehicle Operation Benefits'!E$18),0) -> 0 | E35: =IF(B35<='1) Project Information'!D$14,(1/(1+'1) Project Information'!D$17)^(B35+'1) Project Information'!$D$15))*'Crash Benefits'!E$67,0) -> 0 | F35: =IF(B35<='1) Project Information'!D$14,(1/(1+'1) Project Information'!D$17)^(B35+'1) Project Information'!$D$15))*'Emission Benefits'!J$25,0) -> 0 | G35: =IF(B35<='1) Project Information'!$D$14,(1/(1+(IF('1) Project Information'!$E$17>0,'1) Project Information'!$E$17,'1) Project Information'!$D$17)))^B35)*'Reliability Benefits'!$C$33,0) ->  | I35: ='1) Project Information'!I65 -> 0
B36: 15 | C36: =IF(B36<='1) Project Information'!D$14,(1/(1+'1) Project Information'!D$17)^(B36+'1) Project Information'!$D$15))*'Travel Time Benefits'!E$20,0) -> 0 | D36: =IF(B36<='1) Project Information'!D$14,(1/(1+'1) Project Information'!D$17)^(B36+'1) Project Information'!$D$15))*('Vehicle Operation Benefits'!E$18),0) -> 0 | E36: =IF(B36<='1) Project Information'!D$14,(1/(1+'1) Project Information'!D$17)^(B36+'1) Project Information'!$D$15))*'Crash Benefits'!E$67,0) -> 0 | F36: =IF(B36<='1) Project Information'!D$14,(1/(1+'1) Project Information'!D$17)^(B36+'1) Project Information'!$D$15))*'Emission Benefits'!J$25,0) -> 0 | G36: =IF(B36<='1) Project Information'!$D$14,(1/(1+(IF('1) Project Information'!$E$17>0,'1) Project Information'!$E$17,'1) Project Information'!$D$17)))^B36)*'Reliability Benefits'!$C$33,0) ->  | I36: ='1) Project Information'!I66 -> 0
B37: 16 | C37: =IF(B37<='1) Project Information'!D$14,(1/(1+'1) Project Information'!D$17)^(B37+'1) Project Information'!$D$15))*'Travel Time Benefits'!E$20,0) -> 0 | D37: =IF(B37<='1) Project Information'!D$14,(1/(1+'1) Project Information'!D$17)^(B37+'1) Project Information'!$D$15))*('Vehicle Operation Benefits'!E$18),0) -> 0 | E37: =IF(B37<='1) Project Information'!D$14,(1/(1+'1) Project Information'!D$17)^(B37+'1) Project Information'!$D$15))*'Crash Benefits'!E$67,0) -> 0 | F37: =IF(B37<='1) Project Information'!D$14,(1/(1+'1) Project Information'!D$17)^(B37+'1) Project Information'!$D$15))*'Emission Benefits'!J$25,0) -> 0 | G37: =IF(B37<='1) Project Information'!$D$14,(1/(1+(IF('1) Project Information'!$E$17>0,'1) Project Information'!$E$17,'1) Project Information'!$D$17)))^B37)*'Reliability Benefits'!$C$33,0) ->  | I37: ='1) Project Information'!I67 -> 0
B38: 17 | C38: =IF(B38<='1) Project Information'!D$14,(1/(1+'1) Project Information'!D$17)^(B38+'1) Project Information'!$D$15))*'Travel Time Benefits'!E$20,0) -> 0 | D38: =IF(B38<='1) Project Information'!D$14,(1/(1+'1) Project Information'!D$17)^(B38+'1) Project Information'!$D$15))*('Vehicle Operation Benefits'!E$18),0) -> 0 | E38: =IF(B38<='1) Project Information'!D$14,(1/(1+'1) Project Information'!D$17)^(B38+'1) Project Information'!$D$15))*'Crash Benefits'!E$67,0) -> 0 | F38: =IF(B38<='1) Project Information'!D$14,(1/(1+'1) Project Information'!D$17)^(B38+'1) Project Information'!$D$15))*'Emission Benefits'!J$25,0) -> 0 | G38: =IF(B38<='1) Project Information'!$D$14,(1/(1+(IF('1) Project Information'!$E$17>0,'1) Project Information'!$E$17,'1) Project Information'!$D$17)))^B38)*'Reliability Benefits'!$C$33,0) ->  | I38: ='1) Project Information'!I68 -> 0
B39: 18 | C39: =IF(B39<='1) Project Information'!D$14,(1/(1+'1) Project Information'!D$17)^(B39+'1) Project Information'!$D$15))*'Travel Time Benefits'!E$20,0) -> 0 | D39: =IF(B39<='1) Project Information'!D$14,(1/(1+'1) Project Information'!D$17)^(B39+'1) Project Information'!$D$15))*('Vehicle Operation Benefits'!E$18),0) -> 0 | E39: =IF(B39<='1) Project Information'!D$14,(1/(1+'1) Project Information'!D$17)^(B39+'1) Project Information'!$D$15))*'Crash Benefits'!E$67,0) -> 0 | F39: =IF(B39<='1) Project Information'!D$14,(1/(1+'1) Project Information'!D$17)^(B39+'1) Project Information'!$D$15))*'Emission Benefits'!J$25,0) -> 0 | G39: =IF(B39<='1) Project Information'!$D$14,(1/(1+(IF('1) Project Information'!$E$17>0,'1) Project Information'!$E$17,'1) Project Information'!$D$17)))^B39)*'Reliability Benefits'!$C$33,0) ->  | I39: ='1) Project Information'!I69 -> 0
B40: 19 | C40: =IF(B40<='1) Project Information'!D$14,(1/(1+'1) Project Information'!D$17)^(B40+'1) Project Information'!$D$15))*'Travel Time Benefits'!E$20,0) -> 0 | D40: =IF(B40<='1) Project Information'!D$14,(1/(1+'1) Project Information'!D$17)^(B40+'1) Project Information'!$D$15))*('Vehicle Operation Benefits'!E$18),0) -> 0 | E40: =IF(B40<='1) Project Information'!D$14,(1/(1+'1) Project Information'!D$17)^(B40+'1) Project Information'!$D$15))*'Crash Benefits'!E$67,0) -> 0 | F40: =IF(B40<='1) Project Information'!D$14,(1/(1+'1) Project Information'!D$17)^(B40+'1) Project Information'!$D$15))*'Emission Benefits'!J$25,0) -> 0 | G40: =IF(B40<='1) Project Information'!$D$14,(1/(1+(IF('1) Project Information'!$E$17>0,'1) Project Information'!$E$17,'1) Project Information'!$D$17)))^B40)*'Reliability Benefits'!$C$33,0) ->  | I40: ='1) Project Information'!I70 -> 0
B41: 20 | C41: =IF(B41<='1) Project Information'!D$14,(1/(1+'1) Project Information'!D$17)^(B41+'1) Project Information'!$D$15))*'Travel Time Benefits'!E$20,0) -> 0 | D41: =IF(B41<='1) Project Information'!D$14,(1/(1+'1) Project Information'!D$17)^(B41+'1) Project Information'!$D$15))*('Vehicle Operation Benefits'!E$18),0) -> 0 | E41: =IF(B41<='1) Project Information'!D$14,(1/(1+'1) Project Information'!D$17)^(B41+'1) Project Information'!$D$15))*'Crash Benefits'!E$67,0) -> 0 | F41: =IF(B41<='1) Project Information'!D$14,(1/(1+'1) Project Information'!D$17)^(B41+'1) Project Information'!$D$15))*'Emission Benefits'!J$25,0) -> 0 | G41: =IF(B41<='1) Project Information'!$D$14,(1/(1+(IF('1) Project Information'!$E$17>0,'1) Project Information'!$E$17,'1) Project Information'!$D$17)))^B41)*'Reliability Benefits'!$C$33,0) ->  | I41: ='1) Project Information'!I71 -> 0
B42: 21 | C42: =IF(B42<='1) Project Information'!D$14,(1/(1+'1) Project Information'!D$17)^(B42+'1) Project Information'!$D$15))*'Travel Time Benefits'!E$20,0) -> 0 | D42: =IF(B42<='1) Project Information'!D$14,(1/(1+'1) Project Information'!D$17)^(B42+'1) Project Information'!$D$15))*('Vehicle Operation Benefits'!E$18),0) -> 0 | E42: =IF(B42<='1) Project Information'!D$14,(1/(1+'1) Project Information'!D$17)^(B42+'1) Project Information'!$D$15))*'Crash Benefits'!E$67,0) -> 0 | F42: =IF(B42<='1) Project Information'!D$14,(1/(1+'1) Project Information'!D$17)^(B42+'1) Project Information'!$D$15))*'Emission Benefits'!J$25,0) -> 0 | G42: =IF(B42<='1) Project Information'!$D$14,(1/(1+(IF('1) Project Information'!$E$17>0,'1) Project Information'!$E$17,'1) Project Information'!$D$17)))^B42)*'Reliability Benefits'!$C$33,0) -> 0 | H42: =SUM(C42:G42) -> 0 | I42: ='1) Project Information'!I72 -> 0 | J42: =H42-I42 -> 0
B43: 22 | C43: =IF(B43<='1) Project Information'!D$14,(1/(1+'1) Project Information'!D$17)^(B43+'1) Project Information'!$D$15))*'Travel Time Benefits'!E$20,0) -> 0 | D43: =IF(B43<='1) Project Information'!D$14,(1/(1+'1) Project Information'!D$17)^(B43+'1) Project Information'!$D$15))*('Vehicle Operation Benefits'!E$18),0) -> 0 | E43: =IF(B43<='1) Project Information'!D$14,(1/(1+'1) Project Information'!D$17)^(B43+'1) Project Information'!$D$15))*'Crash Benefits'!E$67,0) -> 0 | F43: =IF(B43<='1) Project Information'!D$14,(1/(1+'1) Project Information'!D$17)^(B43+'1) Project Information'!$D$15))*'Emission Benefits'!J$25,0) -> 0 | G43: =IF(B43<='1) Project Information'!$D$14,(1/(1+(IF('1) Project Information'!$E$17>0,'1) Project Information'!$E$17,'1) Project Information'!$D$17)))^B43)*'Reliability Benefits'!$C$33,0) -> 0 | H43: 0 | I43: ='1) Project Information'!I73 -> 0 | J43: 0
B44: 23 | C44: =IF(B44<='1) Project Information'!D$14,(1/(1+'1) Project Information'!D$17)^(B44+'1) Project Information'!$D$15))*'Travel Time Benefits'!E$20,0) -> 0 | D44: =IF(B44<='1) Project Information'!D$14,(1/(1+'1) Project Information'!D$17)^(B44+'1) Project Information'!$D$15))*('Vehicle Operation Benefits'!E$18),0) -> 0 | E44: =IF(B44<='1) Project Information'!D$14,(1/(1+'1) Project Information'!D$17)^(B44+'1) Project Information'!$D$15))*'Crash Benefits'!E$67,0) -> 0 | F44: =IF(B44<='1) Project Information'!D$14,(1/(1+'1) Project Information'!D$17)^(B44+'1) Project Information'!$D$15))*'Emission Benefits'!J$25,0) -> 0 | G44: =IF(B44<='1) Project Information'!$D$14,(1/(1+(IF('1) Project Information'!$E$17>0,'1) Project Information'!$E$17,'1) Project Information'!$D$17)))^B44)*'Reliability Benefits'!$C$33,0) -> 0 | H44: 0 | I44: ='1) Project Information'!I74 -> 0 | J44: 0
B45: 24 | C45: =IF(B45<='1) Project Information'!D$14,(1/(1+'1) Project Information'!D$17)^B45)*'Travel Time Benefits'!E$20,0) -> 0 | D45: =IF(B45<='1) Project Information'!D$14,(1/(1+'1) Project Information'!D$17)^(B45+'1) Project Information'!$D$15))*('Vehicle Operation Benefits'!E$18),0) -> 0 | E45: =IF(B45<='1) Project Information'!D$14,(1/(1+'1) Project Information'!D$17)^(B45+'1) Project Information'!$D$15))*'Crash Benefits'!E$67,0) -> 0 | F45: =IF(B45<='1) Project Information'!D$14,(1/(1+'1) Project Information'!D$17)^(B45+'1) Project Information'!$D$15))*'Emission Benefits'!J$25,0) -> 0 | G45: =IF(B45<='1) Project Information'!$D$14,(1/(1+(IF('1) Project Information'!$E$17>0,'1) Project Information'!$E$17,'1) Project Information'!$D$17)))^B45)*'Reliability Benefits'!$C$33,0) -> 0 | H45: 0 | I45: ='1) Project Information'!I75 -> 0 | J45: 0
B46: 25 | C46: =IF(B46<='1) Project Information'!D$14,(1/(1+'1) Project Information'!D$17)^B46)*'Travel Time Benefits'!E$20,0) -> 0 | D46: =IF(B46<='1) Project Information'!D$14,(1/(1+'1) Project Information'!D$17)^(B46+'1) Project Information'!$D$15))*('Vehicle Operation Benefits'!E$18),0) -> 0 | E46: =IF(B46<='1) Project Information'!D$14,(1/(1+'1) Project Information'!D$17)^(B46+'1) Project Information'!$D$15))*'Crash Benefits'!E$67,0) -> 0 | F46: =IF(B46<='1) Project Information'!D$14,(1/(1+'1) Project Information'!D$17)^(B46+'1) Project Information'!$D$15))*'Emission Benefits'!J$25,0) -> 0 | G46: =IF(B46<='1) Project Information'!$D$14,(1/(1+(IF('1) Project Information'!$E$17>0,'1) Project Information'!$E$17,'1) Project Information'!$D$17)))^B46)*'Reliability Benefits'!$C$33,0) -> 0 | H46: 0 | I46: ='1) Project Information'!I76 -> 0 | J46: 0
B47: 26 | C47: =IF(B47<='1) Project Information'!D$14,(1/(1+'1) Project Information'!D$17)^B47)*'Travel Time Benefits'!E$20,0) -> 0 | D47: =IF(B47<='1) Project Information'!D$14,(1/(1+'1) Project Information'!D$17)^(B47+'1) Project Information'!$D$15))*('Vehicle Operation Benefits'!E$18),0) -> 0 | E47: =IF(B47<='1) Project Information'!D$14,(1/(1+'1) Project Information'!D$17)^(B47+'1) Project Information'!$D$15))*'Crash Benefits'!E$67,0) -> 0 | F47: =IF(B47<='1) Project Information'!D$14,(1/(1+'1) Project Information'!D$17)^(B47+'1) Project Information'!$D$15))*'Emission Benefits'!J$25,0) -> 0 | G47: =IF(B47<='1) Project Information'!$D$14,(1/(1+(IF('1) Project Information'!$E$17>0,'1) Project Information'!$E$17,'1) Project Information'!$D$17)))^B47)*'Reliability Benefits'!$C$33,0) -> 0 | H47: 0 | I47: ='1) Project Information'!I77 -> 0 | J47: 0
B48: 27 | C48: =IF(B48<='1) Project Information'!D$14,(1/(1+'1) Project Information'!D$17)^B48)*'Travel Time Benefits'!E$20,0) -> 0 | D48: =IF(B48<='1) Project Information'!D$14,(1/(1+'1) Project Information'!D$17)^(B48+'1) Project Information'!$D$15))*('Vehicle Operation Benefits'!E$18),0) -> 0 | E48: =IF(B48<='1) Project Information'!D$14,(1/(1+'1) Project Information'!D$17)^(B48+'1) Project Information'!$D$15))*'Crash Benefits'!E$67,0) -> 0 | F48: =IF(B48<='1) Project Information'!D$14,(1/(1+'1) Project Information'!D$17)^(B48+'1) Project Information'!$D$15))*'Emission Benefits'!J$25,0) -> 0 | G48: =IF(B48<='1) Project Information'!$D$14,(1/(1+(IF('1) Project Information'!$E$17>0,'1) Project Information'!$E$17,'1) Project Information'!$D$17)))^B48)*'Reliability Benefits'!$C$33,0) -> 0 | H48: 0 | I48: ='1) Project Information'!I78 -> 0 | J48: 0
B49: 28 | C49: =IF(B49<='1) Project Information'!D$14,(1/(1+'1) Project Information'!D$17)^B49)*'Travel Time Benefits'!E$20,0) -> 0 | D49: =IF(B49<='1) Project Information'!D$14,(1/(1+'1) Project Information'!D$17)^(B49+'1) Project Information'!$D$15))*('Vehicle Operation Benefits'!E$18),0) -> 0 | E49: =IF(B49<='1) Project Information'!D$14,(1/(1+'1) Project Information'!D$17)^(B49+'1) Project Information'!$D$15))*'Crash Benefits'!E$67,0) -> 0 | F49: =IF(B49<='1) Project Information'!D$14,(1/(1+'1) Project Information'!D$17)^(B49+'1) Project Information'!$D$15))*'Emission Benefits'!J$25,0) -> 0 | G49: =IF(B49<='1) Project Information'!$D$14,(1/(1+(IF('1) Project Information'!$E$17>0,'1) Project Information'!$E$17,'1) Project Information'!$D$17)))^B49)*'Reliability Benefits'!$C$33,0) -> 0 | H49: 0 | I49: ='1) Project Information'!I79 -> 0 | J49: 0
B50: 29 | C50: =IF(B50<='1) Project Information'!D$14,(1/(1+'1) Project Information'!D$17)^B50)*'Travel Time Benefits'!E$20,0) -> 0 | D50: =IF(B50<='1) Project Information'!D$14,(1/(1+'1) Project Information'!D$17)^(B50+'1) Project Information'!$D$15))*('Vehicle Operation Benefits'!E$18),0) -> 0 | E50: =IF(B50<='1) Project Information'!D$14,(1/(1+'1) Project Information'!D$17)^(B50+'1) Project Information'!$D$15))*'Crash Benefits'!E$67,0) -> 0 | F50: =IF(B50<='1) Project Information'!D$14,(1/(1+'1) Project Information'!D$17)^(B50+'1) Project Information'!$D$15))*'Emission Benefits'!J$25,0) -> 0 | G50: =IF(B50<='1) Project Information'!$D$14,(1/(1+(IF('1) Project Information'!$E$17>0,'1) Project Information'!$E$17,'1) Project Information'!$D$17)))^B50)*'Reliability Benefits'!$C$33,0) -> 0 | H50: 0 | I50: ='1) Project Information'!I80 -> 0 | J50: 0
B51: 30 | C51: =IF(B51<='1) Project Information'!D$14,(1/(1+'1) Project Information'!D$17)^B51)*'Travel Time Benefits'!E$20,0) -> 0 | D51: =IF(B51<='1) Project Information'!D$14,(1/(1+'1) Project Information'!D$17)^(B51+'1) Project Information'!$D$15))*('Vehicle Operation Benefits'!E$18),0) -> 0 | E51: =IF(B51<='1) Project Information'!D$14,(1/(1+'1) Project Information'!D$17)^(B51+'1) Project Information'!$D$15))*'Crash Benefits'!E$67,0) -> 0 | F51: =IF(B51<='1) Project Information'!D$14,(1/(1+'1) Project Information'!D$17)^(B51+'1) Project Information'!$D$15))*'Emission Benefits'!J$25,0) -> 0 | G51: =IF(B51<='1) Project Information'!$D$14,(1/(1+(IF('1) Project Information'!$E$17>0,'1) Project Information'!$E$17,'1) Project Information'!$D$17)))^B51)*'Reliability Benefits'!$C$33,0) -> 0 | H51: 0 | I51: ='1) Project Information'!I81 -> 0 | J51: 0
B52: 31 | C52: =IF(B52<='1) Project Information'!D$14,(1/(1+'1) Project Information'!D$17)^B52)*'Travel Time Benefits'!E$20,0) -> 0 | D52: =IF(B52<='1) Project Information'!D$14,(1/(1+'1) Project Information'!D$17)^(B52+'1) Project Information'!$D$15))*('Vehicle Operation Benefits'!E$18),0) -> 0 | E52: =IF(B52<='1) Project Information'!D$14,(1/(1+'1) Project Information'!D$17)^(B52+'1) Project Information'!$D$15))*'Crash Benefits'!E$67,0) -> 0 | F52: =IF(B52<='1) Project Information'!D$14,(1/(1+'1) Project Information'!D$17)^(B52+'1) Project Information'!$D$15))*'Emission Benefits'!J$25,0) -> 0 | G52: =IF(B52<='1) Project Information'!$D$14,(1/(1+(IF('1) Project Information'!$E$17>0,'1) Project Information'!$E$17,'1) Project Information'!$D$17)))^B52)*'Reliability Benefits'!$C$33,0) -> 0 | H52: 0 | I52: ='1) Project Information'!I82 -> 0 | J52: 0
B53: 32 | C53: =IF(B53<='1) Project Information'!D$14,(1/(1+'1) Project Information'!D$17)^B53)*'Travel Time Benefits'!E$20,0) -> 0 | D53: =IF(B53<='1) Project Information'!D$14,(1/(1+'1) Project Information'!D$17)^(B53+'1) Project Information'!$D$15))*('Vehicle Operation Benefits'!E$18),0) -> 0 | E53: =IF(B53<='1) Project Information'!D$14,(1/(1+'1) Project Information'!D$17)^(B53+'1) Project Information'!$D$15))*'Crash Benefits'!E$67,0) -> 0 | F53: =IF(B53<='1) Project Information'!D$14,(1/(1+'1) Project Information'!D$17)^(B53+'1) Project Information'!$D$15))*'Emission Benefits'!J$25,0) -> 0 | G53: =IF(B53<='1) Project Information'!$D$14,(1/(1+(IF('1) Project Information'!$E$17>0,'1) Project Information'!$E$17,'1) Project Information'!$D$17)))^B53)*'Reliability Benefits'!$C$33,0) -> 0 | H53: 0 | I53: ='1) Project Information'!I83 -> 0 | J53: 0
B54: 33 | C54: =IF(B54<='1) Project Information'!D$14,(1/(1+'1) Project Information'!D$17)^B54)*'Travel Time Benefits'!E$20,0) -> 0 | D54: =IF(B54<='1) Project Information'!D$14,(1/(1+'1) Project Information'!D$17)^(B54+'1) Project Information'!$D$15))*('Vehicle Operation Benefits'!E$18),0) -> 0 | E54: =IF(B54<='1) Project Information'!D$14,(1/(1+'1) Project Information'!D$17)^(B54+'1) Project Information'!$D$15))*'Crash Benefits'!E$67,0) -> 0 | F54: =IF(B54<='1) Project Information'!D$14,(1/(1+'1) Project Information'!D$17)^(B54+'1) Project Information'!$D$15))*'Emission Benefits'!J$25,0) -> 0 | G54: =IF(B54<='1) Project Information'!$D$14,(1/(1+(IF('1) Project Information'!$E$17>0,'1) Project Information'!$E$17,'1) Project Information'!$D$17)))^B54)*'Reliability Benefits'!$C$33,0) -> 0 | H54: 0 | I54: ='1) Project Information'!I84 -> 0 | J54: 0
B55: 34 | C55: =IF(B55<='1) Project Information'!D$14,(1/(1+'1) Project Information'!D$17)^B55)*'Travel Time Benefits'!E$20,0) -> 0 | D55: =IF(B55<='1) Project Information'!D$14,(1/(1+'1) Project Information'!D$17)^(B55+'1) Project Information'!$D$15))*('Vehicle Operation Benefits'!E$18),0) -> 0 | E55: =IF(B55<='1) Project Information'!D$14,(1/(1+'1) Project Information'!D$17)^(B55+'1) Project Information'!$D$15))*'Crash Benefits'!E$67,0) -> 0 | F55: =IF(B55<='1) Project Information'!D$14,(1/(1+'1) Project Information'!D$17)^(B55+'1) Project Information'!$D$15))*'Emission Benefits'!J$25,0) -> 0 | G55: =IF(B55<='1) Project Information'!$D$14,(1/(1+(IF('1) Project Information'!$E$17>0,'1) Project Information'!$E$17,'1) Project Information'!$D$17)))^B55)*'Reliability Benefits'!$C$33,0) -> 0 | H55: 0 | I55: ='1) Project Information'!I85 -> 0 | J55: 0
B56: 35 | C56: =IF(B56<='1) Project Information'!D$14,(1/(1+'1) Project Information'!D$17)^B56)*'Travel Time Benefits'!E$20,0) -> 0 | D56: =IF(B56<='1) Project Information'!D$14,(1/(1+'1) Project Information'!D$17)^(B56+'1) Project Information'!$D$15))*('Vehicle Operation Benefits'!E$18),0) -> 0 | E56: =IF(B56<='1) Project Information'!D$14,(1/(1+'1) Project Information'!D$17)^(B56+'1) Project Information'!$D$15))*'Crash Benefits'!E$67,0) -> 0 | F56: =IF(B56<='1) Project Information'!D$14,(1/(1+'1) Project Information'!D$17)^(B56+'1) Project Information'!$D$15))*'Emission Benefits'!J$25,0) -> 0 | G56: =IF(B56<='1) Project Information'!$D$14,(1/(1+(IF('1) Project Information'!$E$17>0,'1) Project Information'!$E$17,'1) Project Information'!$D$17)))^B56)*'Reliability Benefits'!$C$33,0) -> 0 | H56: 0 | I56: ='1) Project Information'!I86 -> 0 | J56: 0
B57: 36 | C57: =IF(B57<='1) Project Information'!D$14,(1/(1+'1) Project Information'!D$17)^B57)*'Travel Time Benefits'!E$20,0) -> 0 | D57: =IF(B57<='1) Project Information'!D$14,(1/(1+'1) Project Information'!D$17)^(B57+'1) Project Information'!$D$15))*('Vehicle Operation Benefits'!E$18),0) -> 0 | E57: =IF(B57<='1) Project Information'!D$14,(1/(1+'1) Project Information'!D$17)^(B57+'1) Project Information'!$D$15))*'Crash Benefits'!E$67,0) -> 0 | F57: =IF(B57<='1) Project Information'!D$14,(1/(1+'1) Project Information'!D$17)^(B57+'1) Project Information'!$D$15))*'Emission Benefits'!J$25,0) -> 0 | G57: =IF(B57<='1) Project Information'!$D$14,(1/(1+(IF('1) Project Information'!$E$17>0,'1) Project Information'!$E$17,'1) Project Information'!$D$17)))^B57)*'Reliability Benefits'!$C$33,0) -> 0 | H57: 0 | I57: ='1) Project Information'!I87 -> 0 | J57: 0
B58: 37 | C58: =IF(B58<='1) Project Information'!D$14,(1/(1+'1) Project Information'!D$17)^B58)*'Travel Time Benefits'!E$20,0) -> 0 | D58: =IF(B58<='1) Project Information'!D$14,(1/(1+'1) Project Information'!D$17)^(B58+'1) Project Information'!$D$15))*('Vehicle Operation Benefits'!E$18),0) -> 0 | E58: =IF(B58<='1) Project Information'!D$14,(1/(1+'1) Project Information'!D$17)^(B58+'1) Project Information'!$D$15))*'Crash Benefits'!E$67,0) -> 0 | F58: =IF(B58<='1) Project Information'!D$14,(1/(1+'1) Project Information'!D$17)^(B58+'1) Project Information'!$D$15))*'Emission Benefits'!J$25,0) -> 0 | G58: =IF(B58<='1) Project Information'!$D$14,(1/(1+(IF('1) Project Information'!$E$17>0,'1) Project Information'!$E$17,'1) Project Information'!$D$17)))^B58)*'Reliability Benefits'!$C$33,0) -> 0 | H58: 0 | I58: ='1) Project Information'!I88 -> 0 | J58: 0
B59: 38 | C59: =IF(B59<='1) Project Information'!D$14,(1/(1+'1) Project Information'!D$17)^B59)*'Travel Time Benefits'!E$20,0) -> 0 | D59: =IF(B59<='1) Project Information'!D$14,(1/(1+'1) Project Information'!D$17)^(B59+'1) Project Information'!$D$15))*('Vehicle Operation Benefits'!E$18),0) -> 0 | E59: =IF(B59<='1) Project Information'!D$14,(1/(1+'1) Project Information'!D$17)^(B59+'1) Project Information'!$D$15))*'Crash Benefits'!E$67,0) -> 0 | F59: =IF(B59<='1) Project Information'!D$14,(1/(1+'1) Project Information'!D$17)^(B59+'1) Project Information'!$D$15))*'Emission Benefits'!J$25,0) -> 0 | G59: =IF(B59<='1) Project Information'!$D$14,(1/(1+(IF('1) Project Information'!$E$17>0,'1) Project Information'!$E$17,'1) Project Information'!$D$17)))^B59)*'Reliability Benefits'!$C$33,0) -> 0 | H59: 0 | I59: ='1) Project Information'!I89 -> 0 | J59: 0
B60: 39 | C60: =IF(B60<='1) Project Information'!D$14,(1/(1+'1) Project Information'!D$17)^B60)*'Travel Time Benefits'!E$20,0) -> 0 | D60: =IF(B60<='1) Project Information'!D$14,(1/(1+'1) Project Information'!D$17)^(B60+'1) Project Information'!$D$15))*('Vehicle Operation Benefits'!E$18),0) -> 0 | E60: =IF(B60<='1) Project Information'!D$14,(1/(1+'1) Project Information'!D$17)^(B60+'1) Project Information'!$D$15))*'Crash Benefits'!E$67,0) -> 0 | F60: =IF(B60<='1) Project Information'!D$14,(1/(1+'1) Project Information'!D$17)^(B60+'1) Project Information'!$D$15))*'Emission Benefits'!J$25,0) -> 0 | G60: =IF(B60<='1) Project Information'!$D$14,(1/(1+(IF('1) Project Information'!$E$17>0,'1) Project Information'!$E$17,'1) Project Information'!$D$17)))^B60)*'Reliability Benefits'!$C$33,0) -> 0 | H60: 0 | I60: ='1) Project Information'!I90 -> 0 | J60: 0
B61: 40 | C61: =IF(B61<='1) Project Information'!D$14,(1/(1+'1) Project Information'!D$17)^B61)*'Travel Time Benefits'!E$20,0) -> 0 | D61: =IF(B61<='1) Project Information'!D$14,(1/(1+'1) Project Information'!D$17)^(B61+'1) Project Information'!$D$15))*('Vehicle Operation Benefits'!E$18),0) -> 0 | E61: =IF(B61<='1) Project Information'!D$14,(1/(1+'1) Project Information'!D$17)^(B61+'1) Project Information'!$D$15))*'Crash Benefits'!E$67,0) -> 0 | F61: =IF(B61<='1) Project Information'!D$14,(1/(1+'1) Project Information'!D$17)^(B61+'1) Project Information'!$D$15))*'Emission Benefits'!J$25,0) -> 0 | G61: =IF(B61<='1) Project Information'!$D$14,(1/(1+(IF('1) Project Information'!$E$17>0,'1) Project Information'!$E$17,'1) Project Information'!$D$17)))^B61)*'Reliability Benefits'!$C$33,0) -> 0 | H61: 0 | I61: ='1) Project Information'!I91 -> 0 | J61: 0
B62: 41 | C62: =IF(B62<='1) Project Information'!D$14,(1/(1+'1) Project Information'!D$17)^B62)*'Travel Time Benefits'!E$20,0) -> 0 | D62: =IF(B62<='1) Project Information'!D$14,(1/(1+'1) Project Information'!D$17)^(B62+'1) Project Information'!$D$15))*('Vehicle Operation Benefits'!E$18),0) -> 0 | E62: =IF(B62<='1) Project Information'!D$14,(1/(1+'1) Project Information'!D$17)^(B62+'1) Project Information'!$D$15))*'Crash Benefits'!E$67,0) -> 0 | F62: =IF(B62<='1) Project Information'!D$14,(1/(1+'1) Project Information'!D$17)^(B62+'1) Project Information'!$D$15))*'Emission Benefits'!J$25,0) -> 0 | G62: =IF(B62<='1) Project Information'!$D$14,(1/(1+(IF('1) Project Information'!$E$17>0,'1) Project Information'!$E$17,'1) Project Information'!$D$17)))^B62)*'Reliability Benefits'!$C$33,0) -> 0 | H62: 0 | I62: ='1) Project Information'!I92 -> 0 | J62: 0
B63: 42 | C63: =IF(B63<='1) Project Information'!D$14,(1/(1+'1) Project Information'!D$17)^B63)*'Travel Time Benefits'!E$20,0) -> 0 | D63: =IF(B63<='1) Project Information'!D$14,(1/(1+'1) Project Information'!D$17)^(B63+'1) Project Information'!$D$15))*('Vehicle Operation Benefits'!E$18),0) -> 0 | E63: =IF(B63<='1) Project Information'!D$14,(1/(1+'1) Project Information'!D$17)^(B63+'1) Project Information'!$D$15))*'Crash Benefits'!E$67,0) -> 0 | F63: =IF(B63<='1) Project Information'!D$14,(1/(1+'1) Project Information'!D$17)^(B63+'1) Project Information'!$D$15))*'Emission Benefits'!J$25,0) -> 0 | G63: =IF(B63<='1) Project Information'!$D$14,(1/(1+(IF('1) Project Information'!$E$17>0,'1) Project Information'!$E$17,'1) Project Information'!$D$17)))^B63)*'Reliability Benefits'!$C$33,0) -> 0 | H63: 0 | I63: ='1) Project Information'!I93 -> 0 | J63: 0
B64: 43 | C64: =IF(B64<='1) Project Information'!D$14,(1/(1+'1) Project Information'!D$17)^B64)*'Travel Time Benefits'!E$20,0) -> 0 | D64: =IF(B64<='1) Project Information'!D$14,(1/(1+'1) Project Information'!D$17)^(B64+'1) Project Information'!$D$15))*('Vehicle Operation Benefits'!E$18),0) -> 0 | E64: =IF(B64<='1) Project Information'!D$14,(1/(1+'1) Project Information'!D$17)^(B64+'1) Project Information'!$D$15))*'Crash Benefits'!E$67,0) -> 0 | F64: =IF(B64<='1) Project Information'!D$14,(1/(1+'1) Project Information'!D$17)^(B64+'1) Project Information'!$D$15))*'Emission Benefits'!J$25,0) -> 0 | G64: =IF(B64<='1) Project Information'!$D$14,(1/(1+(IF('1) Project Information'!$E$17>0,'1) Project Information'!$E$17,'1) Project Information'!$D$17)))^B64)*'Reliability Benefits'!$C$33,0) -> 0 | H64: 0 | I64: ='1) Project Information'!I94 -> 0 | J64: 0
B65: 44 | C65: =IF(B65<='1) Project Information'!D$14,(1/(1+'1) Project Information'!D$17)^B65)*'Travel Time Benefits'!E$20,0) -> 0 | D65: =IF(B65<='1) Project Information'!D$14,(1/(1+'1) Project Information'!D$17)^(B65+'1) Project Information'!$D$15))*('Vehicle Operation Benefits'!E$18),0) -> 0 | E65: =IF(B65<='1) Project Information'!D$14,(1/(1+'1) Project Information'!D$17)^(B65+'1) Project Information'!$D$15))*'Crash Benefits'!E$67,0) -> 0 | F65: =IF(B65<='1) Project Information'!D$14,(1/(1+'1) Project Information'!D$17)^(B65+'1) Project Information'!$D$15))*'Emission Benefits'!J$25,0) -> 0 | G65: =IF(B65<='1) Project Information'!$D$14,(1/(1+(IF('1) Project Information'!$E$17>0,'1) Project Information'!$E$17,'1) Project Information'!$D$17)))^B65)*'Reliability Benefits'!$C$33,0) -> 0 | H65: 0 | I65: ='1) Project Information'!I95 -> 0 | J65: 0
B66: 45 | C66: =IF(B66<='1) Project Information'!D$14,(1/(1+'1) Project Information'!D$17)^B66)*'Travel Time Benefits'!E$20,0) -> 0 | D66: =IF(B66<='1) Project Information'!D$14,(1/(1+'1) Project Information'!D$17)^(B66+'1) Project Information'!$D$15))*('Vehicle Operation Benefits'!E$18),0) -> 0 | E66: =IF(B66<='1) Project Information'!D$14,(1/(1+'1) Project Information'!D$17)^(B66+'1) Project Information'!$D$15))*'Crash Benefits'!E$67,0) -> 0 | F66: =IF(B66<='1) Project Information'!D$14,(1/(1+'1) Project Information'!D$17)^(B66+'1) Project Information'!$D$15))*'Emission Benefits'!J$25,0) -> 0 | G66: =IF(B66<='1) Project Information'!$D$14,(1/(1+(IF('1) Project Information'!$E$17>0,'1) Project Information'!$E$17,'1) Project Information'!$D$17)))^B66)*'Reliability Benefits'!$C$33,0) -> 0 | H66: 0 | I66: ='1) Project Information'!I96 -> 0 | J66: 0
B67: 46 | C67: =IF(B67<='1) Project Information'!D$14,(1/(1+'1) Project Information'!D$17)^B67)*'Travel Time Benefits'!E$20,0) -> 0 | D67: =IF(B67<='1) Project Information'!D$14,(1/(1+'1) Project Information'!D$17)^(B67+'1) Project Information'!$D$15))*('Vehicle Operation Benefits'!E$18),0) -> 0 | E67: =IF(B67<='1) Project Information'!D$14,(1/(1+'1) Project Information'!D$17)^(B67+'1) Project Information'!$D$15))*'Crash Benefits'!E$67,0) -> 0 | F67: =IF(B67<='1) Project Information'!D$14,(1/(1+'1) Project Information'!D$17)^(B67+'1) Project Information'!$D$15))*'Emission Benefits'!J$25,0) -> 0 | G67: =IF(B67<='1) Project Information'!$D$14,(1/(1+(IF('1) Project Information'!$E$17>0,'1) Project Information'!$E$17,'1) Project Information'!$D$17)))^B67)*'Reliability Benefits'!$C$33,0) -> 0 | H67: 0 | I67: ='1) Project Information'!I97 -> 0 | J67: 0
B68: 47 | C68: =IF(B68<='1) Project Information'!D$14,(1/(1+'1) Project Information'!D$17)^B68)*'Travel Time Benefits'!E$20,0) -> 0 | D68: =IF(B68<='1) Project Information'!D$14,(1/(1+'1) Project Information'!D$17)^(B68+'1) Project Information'!$D$15))*('Vehicle Operation Benefits'!E$18),0) -> 0 | E68: =IF(B68<='1) Project Information'!D$14,(1/(1+'1) Project Information'!D$17)^(B68+'1) Project Information'!$D$15))*'Crash Benefits'!E$67,0) -> 0 | F68: =IF(B68<='1) Project Information'!D$14,(1/(1+'1) Project Information'!D$17)^(B68+'1) Project Information'!$D$15))*'Emission Benefits'!J$25,0) -> 0 | G68: =IF(B68<='1) Project Information'!$D$14,(1/(1+(IF('1) Project Information'!$E$17>0,'1) Project Information'!$E$17,'1) Project Information'!$D$17)))^B68)*'Reliability Benefits'!$C$33,0) -> 0 | H68: 0 | I68: ='1) Project Information'!I98 -> 0 | J68: 0
B69: 48 | C69: =IF(B69<='1) Project Information'!D$14,(1/(1+'1) Project Information'!D$17)^B69)*'Travel Time Benefits'!E$20,0) -> 0 | D69: =IF(B69<='1) Project Information'!D$14,(1/(1+'1) Project Information'!D$17)^(B69+'1) Project Information'!$D$15))*('Vehicle Operation Benefits'!E$18),0) -> 0 | E69: =IF(B69<='1) Project Information'!D$14,(1/(1+'1) Project Information'!D$17)^(B69+'1) Project Information'!$D$15))*'Crash Benefits'!E$67,0) -> 0 | F69: =IF(B69<='1) Project Information'!D$14,(1/(1+'1) Project Information'!D$17)^(B69+'1) Project Information'!$D$15))*'Emission Benefits'!J$25,0) -> 0 | G69: =IF(B69<='1) Project Information'!$D$14,(1/(1+(IF('1) Project Information'!$E$17>0,'1) Project Information'!$E$17,'1) Project Information'!$D$17)))^B69)*'Reliability Benefits'!$C$33,0) -> 0 | H69: 0 | I69: ='1) Project Information'!I99 -> 0 | J69: 0
B70: 49 | C70: =IF(B70<='1) Project Information'!D$14,(1/(1+'1) Project Information'!D$17)^B70)*'Travel Time Benefits'!E$20,0) -> 0 | D70: =IF(B70<='1) Project Information'!D$14,(1/(1+'1) Project Information'!D$17)^(B70+'1) Project Information'!$D$15))*('Vehicle Operation Benefits'!E$18),0) -> 0 | E70: =IF(B70<='1) Project Information'!D$14,(1/(1+'1) Project Information'!D$17)^(B70+'1) Project Information'!$D$15))*'Crash Benefits'!E$67,0) -> 0 | F70: =IF(B70<='1) Project Information'!D$14,(1/(1+'1) Project Information'!D$17)^(B70+'1) Project Information'!$D$15))*'Emission Benefits'!J$25,0) -> 0 | G70: =IF(B70<='1) Project Information'!$D$14,(1/(1+(IF('1) Project Information'!$E$17>0,'1) Project Information'!$E$17,'1) Project Information'!$D$17)))^B70)*'Reliability Benefits'!$C$33,0) -> 0 | H70: 0 | I70: ='1) Project Information'!I100 -> 0 | J70: 0
B71: 50 | C71: =IF(B71<='1) Project Information'!D$14,(1/(1+'1) Project Information'!D$17)^B71)*'Travel Time Benefits'!E$20,0) -> 0 | D71: =IF(B71<='1) Project Information'!D$14,(1/(1+'1) Project Information'!D$17)^(B71+'1) Project Information'!$D$15))*('Vehicle Operation Benefits'!E$18),0) -> 0 | E71: =IF(B71<='1) Project Information'!D$14,(1/(1+'1) Project Information'!D$17)^(B71+'1) Project Information'!$D$15))*'Crash Benefits'!E$67,0) -> 0 | F71: =IF(B71<='1) Project Information'!D$14,(1/(1+'1) Project Information'!D$17)^(B71+'1) Project Information'!$D$15))*'Emission Benefits'!J$25,0) -> 0 | G71: =IF(B71<='1) Project Information'!$D$14,(1/(1+(IF('1) Project Information'!$E$17>0,'1) Project Information'!$E$17,'1) Project Information'!$D$17)))^B71)*'Reliability Benefits'!$C$33,0) -> 0 | H71: 0 | I71: ='1) Project Information'!I101 -> 0 | J71: 0
B72: Total | C72: =SUM(C22:C71) -> 0 | D72: =SUM(D22:D71) -> 0 | E72: =SUM(E22:E71) -> 0 | F72: =SUM(F22:F71) -> 0 | G72: =SUM(G22:G71) ->  | H72: =SUM(H13:H71) ->  | I72: =SUM(I13:I71) -> 0 | J72: =SUM(J13:J71) -> 
